Workbook

Sheet Settings (hidden)
A1: Tool Name | B1: Template Name | C1: Tool Definition | D1: WS Name | G1: Loaded Tools: | H1: Tool Name | I1: Sheetname | J1: Sheet CodeName | M1: Initial Use: | N1: TRUE | O1: Disabled: | P1: FALSE | U1: Checkboxes on D8: | V1: PR - Accept | W1: TRUE
A2: Causal Map Diagram | B2: CM Template | C2: Used to create a map to link different cause and effects together to show their influences on each other. | D2: Causal Diagram | H2: Cause & Effect Diagram (Fishbone Diagram) | I2: Cause & Effect Diagram | J2: Sheet8 | V2: PR - R | W2: TRUE
A3: Cause & Effect Diagram (Fishbone Diagram) | B3: C&E Template | C3: (also known as Ishikawa / Fishbone Diagram) is a tool used to simplify the data gathering process and identify probable causes of the problem based on 5 areas of focus (the 5 Focus Areas are also known as the 5M: Man, Materials, Mother Nature, Methods & Machine). | D3: Cause & Effect Diagram | H3: Hypothesis Testing | I3: Hypothesis Testing Result | J3: Sheet14 | V3: DFMEA | W3: FALSE
A4: Control Plan | B4: CP Template | C4: To be used as a living document; the control plan lists all the steps in the process as well as their description and the controls associated to each step in order to reduce defects or potential defects (to be used in accordance with the PFMEA and Process Flow Chart as a group of aligned living documents). | D4: Control Plan | V4: Process Flow | W4: FALSE
A5: Hypothesis Testing | B5: HT Template | C5: Use this form to list all the possible causes as well as the experimentation or action taken to prove them. | D5: Hypothesis Testing | V5: PFMEA | W5: FALSE
A6: IS / IS NOT | B6: IS Template | C6: An "is/is not" comparative analysis can be a good tool for figuring out the root cause-or, what the problem is or is not about. This tool is useful when you need to: Understand plausible problem causes amid many possible causes Identify issues that are not related to the problem. | D6: IS-IS NOT | V6: Control Plan | W6: FALSE
A7: MSA "Measure Systems Analysis" | B7: MSA Template | C7: Also known as Gauge R&R; is a methodical approach to measuring data (usually using Gage R&R) to measure error and assess whether the variability of a process result is mostly due to the operator (reproducibility) or the gauge (repeatability) being used. Gauge R&R is a very useful and the most popular tool for MSA. See Gauge R&R Template. | D7: MSA GR&R | V7: MSA | W7: FALSE
A8: PFMEA | B8: PFMEA Template | C8: A PFMEA is used to list all the process steps as identified in the Process Map and using a methodical approach to assign risk based on severity, probability of occurrence and detection of a possible defect or "failure" in the process step.: (recommended to be performed by a team member separate from the core implementation team in order to objectively assess effectiveness of the corrective action implemented); data will be reviewed for repetition of defect / problem as well as other relevant occurrences. | D8: PFMEA | V8: Work instructions | W8: FALSE
A9: Probable Causes | B9: PC Template | C9: Can be used in conjunction with the Cause & Effect Diagram or by itself; this diagram assigns a level of contribution to each factor listed as a potential cause. | D9: Probable Causes
A10: Process Capability Study | B10: CPK Template | C10: Process Capability Studies are used to statistically determine if the process identified can operate within the specified parameters. | D10: Process Capability Study
A11: Process Flow Diagram | B11: PFD Template | C11: A Process Flow Diagram lists all the process steps in order of sequence, in order to gather data and establish relationships or potential causes. | D11: Process Flow Diagram
A12: Process Map | B12: PM Template | C12: An alternate to the Process Flow Diagram, this process map details the inputs and outputs of the sequence of steps that make up the process in an attempt to depict the critical variables that each step entails and whether each is a controlled or uncontrolled part of the process. | D12: Process Map
A13: Process Map - C&E | B13: PM C&E Template | C13: An alternate to the Process Flow Diagram, this process map relates each process step to the customer requirements. | D13: Process Map C&E
A14: 5 WHY | B14: 5W Template | C14: Not a preferred tool - only use for Low Risk RCCA. 5-WHY is an iterative interrogative technique used to explore the cause-and-effect relationships underlying a particular problem. The primary goal of the technique is to determine the root cause of a defect or problem by repeating the question "Why?". Each answer forms the basis of the next question. | D14: 5 WHY
A15: 5 WHY - 3 legged | B15: 3x5W Template | C15: Not a preferred tool - only use for Low Risk RCCA. 5-WHY is an iterative interrogative technique used to explore the cause-and-effect relationships underlying a particular problem. The primary goal of the technique is to determine the root cause of a defect or problem by repeating the question "Why?". Each answer forms the basis of the next question. | D15: 5x3 5WHY

Sheet Rev History
B2: Revision History
B3: Date | C3: Author | D3: Version | E3: Change History
B4: - | C4: Nicholas Jabar Pete Trainor Michael Goderre Marguerite Farahmand | D4: 0-18 | E4: Initial development/creation of form.
B5: 2020-03-30 | C5: Nicholas Jabar | D5: 19 | E5: DCR14624: - Initial Release in ESDR Added: - 5 WHY and Is/Is Not tools - Ability for Probable causes to load into hypothesis testing
B6: 2020-05-14 | C6: Nicholas Jabar | D6: 19 | E6: DCR15025: No changes to form. Adding Export Approval.
B7: 2020-10-20 | C7: Nicholas Jabar | D7: 19 | E7: DCR16142: Added missing copy write from Is / Is Not Tool
B8: 2021-07-13 | C8: Nicholas Jabar | D8: 20 | E8: DCR17432: - General Formatting Updates/Enhancements - Added ability to add multiple tools ○ Individual Tool buttons removed and Add Tool button added to cover all tools - Tools Updated/Added: ○ Added: 3 Legged 5 Why and Causal Map ○ Updated: Cause and Effect Diagram, Process Flow Diagram, 5Why Diagram, Probably Causes, Hypothesis Testing ○ Process Map, PFMEA and Control Plan tools setup to align with AS9145 PPAP Forms Package - General bug fixes in VBA Code - Added Definitions Section to D5 and D7 Tabs - Broke D5 out into PCA Activities into Correction and Corrective Action sections Updated D5,D6 and D7 tabs to have individual actions
B9: 2021-08-11 | C9: Nicholas Jabar | D9: 21 | E9: DCR17886: - Bug Fixes to macro that loads Hypothesis Testing - Various formatting fixes - Updated MSA Tool - D5 Tab updated to include concurrence of action item
B10: 2021-11-19 | C10: David Roberts | D10: 22 | E10: Move document From ESDR 20-0045 to Proquis ESFM5000.3.3. No content change.
B11: 2023-05-24 | C11: Nicholas Jabar | D11: 23 | E11: - D0 Added to Form - IS/IS Not template updated - Formatting Fixes
B12: 2023-06-28 | C12: Nicholas Jabar | D12: 24 | E12: Changed column heading in Is/IS Not template from "Get Information" to "Differences".
B13: 2023-11-28 | C13: David Roberts | D13: 25 | E13: Updated to align with new ESPD5000.3 terminology.
B14: 2025-04-03 | C14: Roxanne Benzel Mark Cimini Michael Daly Nina Daniels Sydney Holtzen | D14: 26 | E14: - Embedded Is-Is Not template, Containment Checklist, and Gantt Chart into the appropriate tabs. Updated and fixed errors in the GR&R MSA template. Added Gantt Chart template. - Various formatting fixes for consistency. Debugging Visual Basic errors. - Various verbiage fixes for adherence to ESPD5000.3; added terminology and definitions from BAE Systems command media and AS9100. - Added functionality that loads updates from the C&E Diagram to the Hypothesis Testing worksheet. - Added validation sections to D5/D6/D7 to bolster the documentation of validation activities. - Provided reminders of leadership gate reviews throughout the document. - Removed "Generate Report" functionality due to lack of usage. - Includes recommended team members in D1 with definitions.
B15: 2025-06-11 | C15: Sydney Holtzen | D15: 27 | E15: Fixed two bugs The Is/Is-Not in the Toolbox is the old version and not reflective of the selection you can use from the D2 Tab which has the new format. Cause Effect/Ishikawa – the default font color is ‘white’ so when folks bring their D2 Problem Statement into the ‘Effect’ Box it is invisible.

Sheet Instructions
B2: Template Usage Instructions
B3: Macros are REQUIRED for this form to operate correctly If you see the below ribbon at the top, please click "Enable Content"
B10: Additional Instructions
B11: If the above does not work you may need to enable Macros in the Trust Center using the following Steps. 1.Click the File tab. 2. Click Options. 3. Click Trust Center, and then click Trust Center Settings. 4. In the Trust Center, click Macro Settings. 5.Under "Developer Macro Settings", select "Trust access to the VBA project object model".
B20: Notes
B21: PLEASE BE ADVISED: Deleting Tabs or modifying worksheets may cause the built in Macros to no longer function. You may add as many Tabs to this Workbook as you would like without causing issues.

Sheet 8D Overview
B2: BAE SYSTEMS 8D Overview
B4: Instructions: The process steps below are intended to provide guidelines to perform a formal RCCA (Root Cause Corrective Action) Implementation utilizing the 8D Method. Each process step in the 8D Method is highlighted in a color and listed in sequence in the first row below followed by a definition. The tools associated with each process step are listed and defined under each pertaining step. Each tool is color-coded to match the tab in this Excel file where it is located. Not all tools have to be used in the 8D process in order to complete an 8D successfully; however, a minimum of one tool is recommended per process step in the 8D RCCA.

Sheet Toolbox
B1: 8D Toolbox
B3: Click on the "Add Tool" button to select the tool you would like to add. You can add as many tools as needed on the form.
B19: Tool to Use (Click "Add Tool" button) | C19: Tool Definition / When to Use
B20: MSA "Measure Systems Analysis" | C20: MSA is a methodical approach to measuring data to measure error and assess whether the variability of a process result is mostly due to the operator (reproducibility) or the gauge (repeatability) being used. Gauge R&R is a very useful and the most popular tool for MSA, and there is a template in the Toolbox. Minitab can be utilized to create and analyze an MSA.
B21: Process Flow Diagram | C21: A Process Flow Diagram lists all the process steps in order of sequence in order to gather data and establish relationships or potential causes.
B22: Process Map Template | C22: An alternate to the Process Flow Diagram, this process map details the inputs and outputs of the sequence of steps that make up the process in an attempt to depict the critical variables that each step entails and whether each is a controlled or uncontrolled part of the process.
B23: Process Capability Study Worksheet | C23: Process Capability Studies are used to statistically determine if the process identified can operate within the specified parameters.
B24: PFMEA | C24: A PFMEA is used to list all the process steps as identified in the Process Map and using a methodical approach to assign risk based on severity, probability of occurrence and detection of a possible defect or "failure" in the process step.: (recommended to be performed by a team member separate from the core implementation team in order to objectively assess effectiveness of the corrective action implemented); data will be reviewed for repetition of defect / problem as well as other relevant occurrences.
B25: Control Plan | C25: Control plans list all the steps in the process as well as their description and the controls associated to each step in order to reduce defects or potential defects (to be used in accordance with the PFMEA and Process Flow Chart as a group of aligned living documents). The control plan is intended to be used as a living document.
B26: Probable Causes | C26: This diagram assigns a level of contribution to each factor listed as a potential cause. The diagram can be used in conjunction with the Cause & Effect Diagram or by itself.
B27: Cause & Effect Diagram | C27: Also known as Ishikawa / Fishbone Diagram, the C&E Diagram is a tool used to simplify the data gathering process and identify probable causes of the problem based on 5 areas of focus (the 5 Focus Areas are also known as the 5M: Man, Materials, Mother Nature, Methods & Machine).
B28: Hypothesis Testing | C28: Use this form to list all the possible causes as well as the experimentation or action taken to prove them.
B29: IS / IS NOT | C29: An "Is/Is Not" comparative analysis can be a good tool for figuring out the root cause or what the problem is or is not about. This tool is useful when you need to understand plausible problem causes amid many possible causes and identify issues that are not related to the problem.
B30: Causal Map Diagram | C30: Used to create a map to link different cause and effects together to show their influences on each other.
B31: 5-WHY | C31: Not a preferred tool - only use for Low Risk RCCA. 5-WHY is an iterative interrogative technique used to explore the cause-and-effect relationships underlying a particular problem. The primary goal of the technique is to determine the root cause of a defect or problem by repeating the question "Why?". Each answer forms the basis of the next question.
B32: 3-Legged 5-WHY | C32: Not a preferred tool - only use for Low Risk RCCA. 5-WHY is an iterative interrogative technique used to explore the cause-and-effect relationships underlying a particular problem. The primary goal of the technique is to determine the root cause of a defect or problem by repeating the question "Why?". Each answer forms the basis of the next question.
B34: ADDITIONAL TOOLS (NOT INCLUDED IN 8D TEMPLATE) Many of these tools can be found in Minitab
B35: Tool Name | C35: Tool Definition / When to Use
B36: Histogram | C36: A Histogram is used to display of statistical information that uses rectangles to show the frequency of data items in successive numerical intervals of equal size.
B37: Scatter Plot | C37: A Scatter Plot is a graph that can be used in order to plot all the data points collected (usually numerical / quantitative data) and identify possible correlation.
B38: Pareto Chart | C38: A Pareto Chart can be used to plot all the data and see how it accumulates into groups of likely items; usually used to identify the "vital few" that are most common and recurrent in order to determine patterns or areas of focus.
B39: Fault Tree Analysis | C39: Also known as FTA, the main purpose of Fault Tree Analysis is to help identify potential causes of system failures before the failures actually occur. It can also be used to evaluate the probability of the top event using analytical or statistical methods. These calculations involve system quantitative reliability and maintainability information, such as failure probability, failure rate and repair rate.
B40: ANOVA | C40: An ANOVA (Analysis Of Variance) test is a way to find out if survey or experiment results are significant. In other words, they help you to figure out if you need to reject the null hypothesis or accept the alternate hypothesis. There are two types of ANOVA (One-Way and Two-Way Analysis); One-way or two-way refers to the number of independent variables (IVs) in your Analysis of Variance test. One-way has one independent variable (with 2 levels) and two-way has two independent variables (can have multiple levels). For example, a one-way Analysis of Variance could have one IV (brand of cereal) and a two-way Analysis of Variance has two IVs (brand of cereal, calories).
B41: Regression | C41: Statistical Analysis used to determine the strength of the relationship between one dependent variable (usually denoted by Y) and a series of other changing variables (known as independent variables).
B42: Multi-Vari Analysis | C42: A multi-vari chart is a graphical representation of the relationships between factors and a response. Use a multi-vari chart to present analysis of variance data in a graphical form especially in the preliminary stages of data analysis to view data, possible relationships, and root causes for variation.
B43: Box & Whisker Plot | C43: A graphic way to display the median, quartiles, and extremes of a data set on a number line to show the distribution of the data.
B44: Correlation | C44: A statistical tool that uses a Correlation coefficients to measure the strength of association between two variables. The most common correlation coefficient, called the Pearson product-moment correlation coefficient, measures the strength of the linear association between variables.
B45: Yokoten | C45: A Japanese term that can be roughly translated as “across everywhere” or "Read Across". In the Japanese Lean system, it is used to mean “best practice sharing.”
B46: Control Chart | C46: The control chart is a graph used to study how a process changes over time. Data are plotted in time order. A control chart always has a central line for the average, an upper line for the upper control limit, and a lower line for the lower control limit. These lines are determined from historical data.
B47: Design Review | C47: Cross-functional team meeting to discuss / determine if design is robust enough to meet product functionality. Design Reviews are held at the beginning stages of a product life cycle or anytime after design modifications are merited.
B48: DFMEA | C48: A DFMEA lists all the design characteristics of a part / product and uses a methodical approach to assign risk based on severity, probability of occurrence and detection of a possible defect or "failure" in the process step.: (recommended to be performed by the design team) in order to assign potential risk due to design and also develop / design alternate measures to reduce risk of failure.
B49: Poka Yoke | C49: Japanese term (also known as "mistake proofing") is a method to reduce possible defects by aligning the process with techniques that reduce or eliminate probability of defects.

Sheet D0 PLAN & ERA (hidden)
B2: 8D Details | H2: Date Opened: | K2: CAR NO.
B3: Program/Supplier Name: | H3: Supplier/Program ID:
B4: Part Number: | E4: Part Description:
B5: Symptom Title:
B6: D0 PLAN & EMERGENCY RESPONSE ACTION
B7: Specify the Symptom being experienced and the Emergency Response Action (ERA) being taken to protect the Customer (Internal or External). Include how the ERA was verified and validated to be effective. Log data into TipQA or System of Record. Understand the scope and magnitude of the symptom to formulate plans for subsequent 8D steps and to resource accordingly.
B8: Symptom Identified
B9: ERA Action(s) | C9: #1
C10: #2
C11: #3
B12: Responsiblilites
B13: Verification
B14: Validation
B15: Note: Blank fields highlighted in yellow
B16: Term | C16: Definition
B17: Verification | C17: Proof developed before implementation that the action will do what is intended by providing a "before" and "after" data comparison; it does not introduce a new problem.
B18: Validation | C18: Ongoing evidence that the implemented action is doing what was intended without introducing a new problem. Validation follows after successful verification. Although the Customer (Internal or External) is the final check for validation, prudence dictates that the Customer is not the primary way validation is accomplished.

Sheet D1 CREATE A TEAM (hidden)
B2: D1 CREATE A TEAM | Q2: x
B3: Select and establish a team of individuals with subject matter, product, and/or process knowledge. | Q3: x
B4: Name | D4: Company | H4: Position | K4: Contact Number | Q4: x
H5: 8D Facilitator | Q5: t
H6: Champion | Q6: t
H7: Sponsor/Project Lead | Q7: t
H8: Recorder/Scribe | Q8: t
H9: Team Member | Q9: t
H10: Team Member | Q10: t
H11: Team Member | Q11: te
B17: Role | C17: Role Description
B18: 8D Facilitator | C18: Leader of the 8D Process, spokesperson for the team, facilitates discussion and investigation, forms sub-teams.
B19: Champion | C19: Owner of the system/process under consideration. Authority to make changes to this system/process. Helps to remove roadblocks.
B20: Sponsor/Project Lead | C20: Provides resources to execute the 8D/RCCA.
B21: Recorder | C21: Continuously updates TipQA/Oracle with latest 8D and status. Works with scribe to obtain latest versions of the 8D form.
B22: Scribe | C22: Documents discussions occuring during team meetings. Live-edits 8D Form during team meetings.
B23: Stakeholders | C23: Anyone else with a vested interest in the 8D and its completion. Examples: QMS, DCMA, Customer (Internal or External)
B24: Team Members | C24: Contributors, knowledgeable of process under consideration.

Sheet D2 DEFINE PROBLEM (hidden)
B2: D2 DEFINE THE PROBLEM
B3: Specify the problem by identifying in quantifiable terms the WHO, WHAT, WHERE, WHEN WHY, HOW & HOW MANY for the problem.
K4: REPEAT CONCERN:
K5: QTY RECEIVED
K6: QTY REJECTED
K7: REJECT % | L7: =IFERROR(L6/L5,"") -> 
B8: Note: It is highly recommended that the 8D Team uses the IS/IS NOT Comparative Analysis tool to complete D2 Define the Problem.

Sheet D2 IS-IS NOT (hidden)
B2: PROBLEM SOLVING WORKSHEET
B3: Is/Is Not & Comparative Analysis Tool
B4: Problem Description:
D5: Problem Description Syntax: Object/Deviation/How Sensed/Impact to Business
B6: Is/Is Not Analysis - Complete during D2 | G6: Comparative Analysis - Complete during D4
D7: IS | E7: IS NOT | G7: Differences | H7: Changes | I7: Dates | J7: Get Information
G8: What is different, odd, unusual, special, or unique about each IS compared to its IS NOT? What else is different? | H8: What changed in, on, around, or about each distinction? When did the change occur? Record date and time. What else has changed?
B9: WHAT | C9: What Object?
C10: What Deviation?
B12: WHERE | C12: Where geographically?
C13: Where on the object?
B15: WHEN | C15: When first?
C16: When since?
C17: What is the pattern?
C18: When in the life cycle?
B20: HOW BIG / EXTENT | C20: How many objects?
C21: What is the size?
B25: Add rows as needed for each category.

Sheet D3 CONTAIN (hidden)
B2: D3 CONTAIN | Q2: x
B3: Provide details on containment activities at BAE Systems, Suppliers and Customer (Internal or External) sites, if applicable. Perform Read Across. For BAE Systems containment, the ESCK5000.3.5 Containment Checklist should be utilized. | Q3: x
B4: ESCK5000.3.5 Containment Checklist | Q4: x
B5: Location | C5: Affected | D5: Total | E5: Sorted | F5: Not Good | G5: Notes / Comments | Q5: x
B6: Supplier In Process | C6: Select | Q6: l
B7: Supplier Finished Goods | C7: Select | Q7: x
B8: Supplier In Transit | C8: Select | Q8: x
B9: Incoming inspection | C9: Select | Q9: x
B10: Internal Inventory | C10: Select | Q10: x
B11: Manufacturing process | C11: Select | Q11: x
B12: Finished Goods | C12: Select | Q12: x
B13: Customer Stock | C13: Select | Q13: x
B14: Customer Side of Line | C14: Select | Q14: x
B15: Customer Shipping | C15: Select | Q15: x
C16: Overall | D16: =SUM(D6:D15) -> 0 | E16: =SUM(E6:E15) -> 0 | F16: =SUM(F6:F15) -> 0 | Q16: x
B17: Containment Action(s) Taken at BAE Systems | I17: Effect | L17: Date | Q17: x
Q18: cb
Q19: cb
Q20: cb
Q21: cbe
B22: Containment Action(s) Taken at Supplier Location | I22: Effect | L22: Date | Q22: x
Q23: cs
Q24: cs
Q25: cs
Q26: cse
B27: Containment Identification Mark | I27: 1st Containment Batch Shipping Details | Q27: D313

Sheet D4 DETERMINE ROOT CAUSE (hidden)
B2: D4 DETERMINE ROOT CAUSE | Q2: x
B3: Identify all possible causes that could explain why the problem occurred. Also, identify why the problem was not detected or prevented. | Q3: x
B4: Action Items to Find Occurrence Root Cause | H4: Due Date | I4: Action Owner | L4: Closed Date | Q4: x
Q5: r
Q6: r
Q7: re
B8: Occurrence Root Cause (How the issue was created) | Q8: x
Q9: rc
B10: Action Items to Find Escape Root Cause | H10: Due Date | I10: Action Owner | L10: Closed Date | Q10: x
Q11: e
Q12: e
Q13: ee
B14: Escape Root Cause (Earliest point in the QMS where the problem should have been detected) | Q14: x
Q15: ec
B16: Note: It is highly recommended that the 8D Team updates the IS/IS NOT Analysis from D2 and complete the Comparative Analysis.
B20: Tool to Use | C20: Tool Definition / When to Use
B21: MSA "Measure Systems Analysis" | C21: Also known as Gauge R&R; is a methodical approach to measuring data (usually using Gauge R&R) to measure error and assess whether the variability of a process result is mostly due to the operator (reproducibility) or the gauge (repeatability) being used. Gauge R&R is a very useful and the most popular tool for MSA. See Gauge R&R Template or utilize Minitab to create and analyze an MSA.
B22: Process Flow Diagram | C22: A Process Flow Diagram (PFD) lists all the process steps in order of sequence in order to gather data and establish relationships or potential causes.
B23: Process Map Template | C23: An alternate to the Process Flow Diagram, this process map details the inputs and outputs of the sequence of steps that make up the process in an attempt to depict the critical variables that each step entails and whether each is a controlled or uncontrolled part of the process.
B24: Process Capability Study Worksheet | C24: Process Capability Studies are used to statistically determine if the process identified can operate within the specified parameters.
B25: Probable Causes | C25: Can be used in conjunction with the Cause & Effect Diagram or by itself; this diagram assigns a level of contribution to each factor listed as a potential cause.
B26: Cause & Effect Diagram | C26: Also known as Ishikawa / Fishbone Diagram, Cause & Effect Diagram is a tool used to simplify the data gathering process and identify probable causes of the problem based on 5 areas of focus (the 5 Focus Areas are also known as the 5M: Man, Materials, Mother Nature, Methods & Machine).
B27: Hypothesis Testing | C27: Use this form to list all the possible causes as well as the experimentation or action taken to prove them.
B28: IS / IS NOT | C28: An "Is/Is Not" comparative analysis can be a good tool for defining what the problem is or is not about. This tool is useful when you need to understand plausible problem causes amid many possible causes, and to identify issues that are not related to the problem. Go back to the IS-IS NOT tab under D2 to complete the comparative analysis.
B30: Additional Tools that can be used in Root Cause Analysis Many of these tools can be found in Minitab.
B31: Tool Name | C31: Tool Definition / When to Use
B32: Histogram | C32: A Histogram is used to display of statistical information that uses rectangles to show the frequency of data items in successive numerical intervals of equal size.
B33: Scatter Plot | C33: A Scatter Plot is a graph that can be used in order to plot all the data points collected (usually numerical / quantitative data) and identify possible correlation.
B34: Pareto Chart | C34: A Pareto Chart can be used to plot all the data and see how it accumulates into groups of likely items; usually used to identify the "vital few" that are most common and recurrent in order to determine patterns or areas of focus.
B35: Fault Tree Analysis | C35: Also known as FTA; the main purpose of the fault tree analysis is to help identify potential causes of system failures before the failures actually occur. It can also be used to evaluate the probability of the top event using analytical or statistical methods. These calculations involve system quantitative reliability and maintainability information, such as failure probability, failure rate and repair rate.
B36: ANOVA | C36: An ANOVA (Analysis Of Variance) test is a way to find out if survey or experiment results are significant. In other words, they help you to figure out if you need to reject the null hypothesis or accept the alternate hypothesis. There are two types of ANOVA (One-Way and Two-Way Analysis); One-way or two-way refers to the number of independent variables (IVs) in your Analysis of Variance test. One-way has one independent variable (with 2 levels) and two-way has two independent variables (can have multiple levels). For example, a one-way Analysis of Variance could have one IV (brand of cereal) and a two-way Analysis of Variance has two IVs (brand of cereal, calories).
B37: Regression | C37: Statistical Analysis used to determine the strength of the relationship between one dependent variable (usually denoted by Y) and a series of other changing variables (known as independent variables).
B38: Multi-Vari Analysis | C38: A multi-vari chart is a graphical representation of the relationships between factors and a response. Use a multi-vari chart to present analysis of variance data in a graphical form especially in the preliminary stages of data analysis to view data, possible relationships, and root causes for variation.
B39: Box & Whisker Plot | C39: A graphic way to display the median, quartiles, and extremes of a data set on a number line to show the distribution of the data.
B40: Correlation | C40: A statistical tool that uses a Correlation coefficients to measure the strength of association between two variables. The most common correlation coefficient, called the Pearson product-moment correlation coefficient, measures the strength of the linear association between variables.

Sheet D5 ID CORRECTIVE ACTIONS (hidden)
Q1: x
B2: D5 IDENTIFY CORRECTIVE ACTIONS | Q2: x | R2: x
B3: Establish Corrective Actions that prevent the recurrence of the problem and Corrections that eliminate the nonconformity. | Q3: x
B4: Correction: Action(s) taken to eliminate a detected nonconformity | Q4: x | R4: x
B5: # | C5: Correction Activity | I5: Due Date | J5: Action Owner | L5: Concurrence | M5: Closed Date | Q5: x | R5: x
B6: C1 | L6: No | Q6: d5c | R6: d5c
B7: C2 | Q7: d5c
B8: C3 | Q8: d5c
B9: C4 | Q9: d5cE
B10: Corrective Action: Action(s) taken to eliminate the cause of a nonconformity Prior to implementation, the team will evaluate how the Corrective Actions will address the root cause. | Q10: x | R10: x
B11: # | C11: Corrective Action | I11: Due Date | J11: Action Owner | L11: Concurrence | M11: Closed Date | Q11: x | R11: x
B12: CA1 | L12: No | Q12: d5 | R12: d5
B13: CA2 | Q13: d5
B14: CA3 | L14: No | Q14: d5 | R14: d5
B15: CA4 | Q15: d5e
B16: Corrective Action Validation: How will you verify the effectiveness of the Permanent Corrective Action(s) to turn off the D2 Problem Statement? For each Corrective Action, list the evidence that the team PLANS to collect. | Q16: x | R16: x
B17: # | C17: Validation Plan
B18: CA1 | Q18: d5v
B19: CA2 | Q19: d5v
B20: CA3 | Q20: d5v
B21: CA4 | Q21: d5vE | R21: d5v
B27: Term | D27: Definition according to ISO 9000:2015 Section 3.12
B28: Corrective Action | D28: Action to eliminate the cause of a nonconformity and to prevent recurrence. • There can be more than one cause for a nonconformity. • Corrective action is taken to prevent recurrence whereas preventive action is taken to prevent occurrence. • This constitutes one of the common terms and core definitions within the ISO management system standards.
B29: Correction | D29: Action to eliminate a detected nonconformity. • A correction can be made in advance of, in conjunction with, or after a corrective action. • A correction can be, for example, rework or regrade.

Sheet D6 IMPLEMENT & VERIFY EFF (hidden)
Q1: x
B2: D6 IMPLEMENT CORRECTIVE ACTIONS AND VERIFY EFFECTIVENESS Implement the Corrective Actions and verify the actions were effective in preventing recurrence of the problem. | Q2: x
B3: Corrective Action Implementation Describe what activities were performed to implement the Permanent Corrective Action(s). | Q3: x
B4: # | C4: Corrective Action Implementation Activity | J4: Due Date | K4: Action Owner | L4: Closed Date | Q4: x
B5: CA1 | Q5: d6
B6: CA2 | Q6: d6
B7: CA3 | Q7: d6
B8: CA4 | Q8: d6e
B9: Verification of Corrective Action Implementation Provide evidence that each Corrective Action has been implemented. | Q9: x
B10: # | C10: Evidence of Corrective Action Implementation | Q10: x
B11: CA1 | Q11: d6vi
B12: CA2 | Q12: d6vi
B13: CA3 | Q13: d6vi
B14: CA4 | Q14: d6viE
B15: How were all the Corrective Action(s) validated to be effective? Upon implementation of the Corrective Action(s), add objective evidence (data) that proves that the Corrective Action(s) prevents recurrence of the D2 Problem Statement (turn the problem on/off). | Q15: x
B16: # | C16: Validation Data | K16: Action Owner | L16: Date | Q16: x
B17: CA1 | Q17: d6v
B18: CA2 | Q18: d6v
B19: CA3 | Q19: d6v
B20: CA4 | Q20: d6vE
Q21: x
Q22: x
Q23: x
Q24: x
Q25: x
Q26: x
Q27: x
Q28: x
B29: Tool to Use | D29: Tool Definition / When to Use
B30: MSA "Measure Systems Analysis" | D30: Also known as Gauge R&R; is a methodical approach to measuring data (usually using Gage R&R) to measure error and assess whether the variability of a process result is mostly due to the operator (reproducibility) or the gauge (repeatability) being used. Gauge R&R is a very useful and the most popular tool for MSA. See Gauge R&R Template or use Minitab to generate the MSA.
B31: Process Flow Diagram | D31: A Process Flow Diagram lists all the process steps in order of sequence in order to gather data and establish relationships or potential causes.
B32: Process Map Template | D32: An alternate to the Process Flow Diagram, this process map details the inputs and outputs of the sequence of steps that make up the process in an attempt to depict the critical variables that each step entails and whether each is a controlled or uncontrolled part of the process.
B33: Process Capability Study Worksheet | D33: Process Capability Studies are used to statistically determine if the process identified can operate within the specified parameters.
B34: Probable Causes | D34: Can be used in conjunction with the Cause & Effect Diagram or by itself; this diagram assigns a level of contribution to each factor listed as a potential cause.
B35: Cause & Effect Diagram | D35: Also known as Ishikawa / Fishbone Diagram, Cause & Effect Diagram is a tool used to simplify the data gathering process and identify probable causes of the problem based on 5 areas of focus (the 5 Focus Areas are also known as the 5M: Man, Materials, Mother Nature, Methods & Machine).
B36: Hypothesis Testing | D36: Use this form to list all the possible causes as well as the experimentation or action taken to prove them.
B37: Gantt Chart | D37: A Gantt Chart is a project management tool that helps the user visualize the timeline and monitor the progress of corrective actions over time.
B39: ADDITIONAL TOOLS (NOT INCLUDED IN 8D TEMPLATE) Many of these tools can be found in Minitab
B40: Tool Name | D40: Tool Definition / When to Use
B41: Histogram | D41: A Histogram is used to display of statistical information that uses rectangles to show the frequency of data items in successive numerical intervals of equal size.
B42: Scatter Plot | D42: A Scatter Plot is a graph that can be used in order to plot all the data points collected (usually numerical / quantitative data) and identify possible correlation.
B43: Pareto Chart | D43: A Pareto Chart can be used to plot all the data and see how it accumulates into groups of likely items; usually used to identify the "vital few" that are most common and recurrent in order to determine patterns or areas of focus.
B44: Fault Tree Analysis | D44: The main purpose of the fault tree analysis (FTA) is to help identify potential causes of system failures before the failures actually occur. It can also be used to evaluate the probability of the top event using analytical or statistical methods. These calculations involve system quantitative reliability and maintainability information, such as failure probability, failure rate and repair rate.
B45: ANOVA | D45: An ANOVA (Analysis Of Variance) test is a way to find out if survey or experiment results are significant. In other words, they help you to figure out if you need to reject the null hypothesis or accept the alternate hypothesis. There are two types of ANOVA (One-Way and Two-Way Analysis); One-way or two-way refers to the number of independent variables (IVs) in your Analysis of Variance test. One-way has one independent variable (with 2 levels) and two-way has two independent variables (can have multiple levels). For example, a one-way Analysis of Variance could have one IV (brand of cereal) and a two-way Analysis of Variance has two IVs (brand of cereal, calories).
B46: Regression | D46: Statistical Analysis used to determine the strength of the relationship between one dependent variable (usually denoted by Y) and a series of other changing variables (known as independent variables).
B47: Multi-Vari Analysis | D47: Multi-Vari Charts are a graphical representation of the relationships between factors and a response. Use a Multi-Vari Chart to present analysis of variance data in a graphical form especially in the preliminary stages of data analysis to view data, possible relationships, and root causes for variation.
B48: Box & Whisker Plot | D48: A graphic way to display the median, quartiles, and extremes of a data set on a number line to show the distribution of the data.
B49: Correlation | D49: A statistical tool that uses a Correlation coefficients to measure the strength of association between two variables. The most common correlation coefficient, called the Pearson product-moment correlation coefficient, measures the strength of the linear association between variables.

Sheet D6 Gantt Chart (hidden)
A1: Gantt Chart for Corrective Action Implementation | C1: May | J1: June
B2: Date | C2: 25 | D2: 26 | E2: 27 | F2: 28 | G2: 29 | H2: 30 | I2: 31 | J2: 1 | K2: 2 | L2: 3 | M2: 4 | N2: 5 | O2: 6 | P2: 7 | Q2: 8 | R2: 9 | S2: 10 | T2: 11 | U2: 12 | V2: 13 | W2: 14 | X2: 15 | Y2: 16 | Z2: 17 | AA2: 18 | AB2: 19 | AC2: 20 | AD2: 21 | AE2: 22 | AF2: 23 | AG2: 24 | AH2: 25 | AI2: 26 | AJ2: 27 | AK2: 28 | AL2: 29 | AM2: 30
B3: Day | C3: -7 | D3: -6 | E3: -5 | F3: -4 | G3: -3 | H3: -2 | I3: -1 | J3: 1 | K3: 2 | L3: 3 | M3: 4 | N3: 5 | O3: 6 | P3: 7 | Q3: 8 | R3: 9 | S3: 10 | T3: 11 | U3: 12 | V3: 13 | W3: 14 | X3: 15 | Y3: 16 | Z3: 17 | AA3: 18 | AB3: 19 | AC3: 20 | AD3: 21 | AE3: 22 | AF3: 23 | AG3: 24 | AH3: 25 | AI3: 26 | AJ3: 27 | AK3: 28 | AL3: 29 | AM3: 30
A4: Corrective Action # | B4: ACTIVITY
AN19: . | AO19: . | AP19: .

Sheet D7 TAKE PREVENTATIVE MEASURES (hidden)
Q1: x
B2: D7 TAKE PREVENTATIVE MEASURES (PREVENTATIVE ACTION) Action(s) taken to eliminate the cause of a potential nonconformity or other undesirable situation. | Q2: x
Q3: x
B4: Preventative Actions | Q4: x
B5: # | C5: Preventative Action | K5: Due Date | L5: Action Owner | M5: Closed Date | Q5: x
B6: PA1 | Q6: d7p
B7: PA2 | Q7: d7p
B8: PA3 | Q8: d7p
B9: PA4 | Q9: d7pe
B10: Preventative Action Implementation Describe what activities were performed to implement the Preventative Action(s). | Q10: x
B11: # | C11: Preventative Action Implementation Activity | K11: Due Date | L11: Action Owner | M11: Closed Date | Q11: x
B12: PA1 | Q12: d7pi
B13: PA2 | Q13: d7pi
B14: PA3 | Q14: d7pi
B15: PA4 | Q15: d7piE
B16: Verification of Preventative Action Implementation Provide evidence that each Preventative Action has been implemented. | Q16: x
B17: # | C17: Evidence of Preventative Action Implementation | Q17: x
B18: PA1 | Q18: d7ev
B19: PA2 | Q19: d7ev
B20: PA3 | Q20: d7ev
B21: PA4 | Q21: d7evE
B22: Preventative Action Validation: How was the effectiveness of all the Preventative Action(s) validated? Upon implementation of the Preventative Action(s), add objective evidence (data) that proves that the Preventative Action(s) prevents occurrence of the D2 Problem Statement (turn the problem on/off). | Q22: x
B23: # | C23: Validation Data | L23: Action Owner | M23: Date | Q23: x
B24: PA1 | Q24: d7v
B25: PA2 | Q25: d7v
B26: PA3 | Q26: d7v
B27: PA4 | Q27: d7vE
B28: Note: Preventative Action is taken to prevent occurrence whereas corrective action is taken to prevent recurrence. | Q28: x
Q29: x
Q30: x
Q31: x
Q32: x
Q33: x
B34: Term | D34: Definition according to ISO 9000:2015 Section 3.12
B35: Preventative Action | D35: Preventative action is taken to prevent occurrence whereas corrective action is taken to prevent recurrence. Preventative actions are designed to eliminate the cause of a potential nonconformity or other potential undesirable situation. There can be more than one cause for a potential nonconformity.
B39: Tool To Use | D39: Tool Definition / When to Use
B40: PFMEA | D40: A PFMEA is used to list all the process steps as identified in the Process Map and using a methodical approach to assign risk based on severity, probability of occurrence and detection of a possible defect or "failure" in the process step.: (recommended to be performed by a team member separate from the core implementation team in order to objectively assess effectiveness of the corrective action implemented); data will be reviewed for repetition of defect / problem as well as other relevant occurrences.
B41: DFMEA | D41: A DFMEA lists all the design characteristics of a part / product and uses a methodical approach to assign risk based on severity, probability of occurrence and detection of a possible defect or "failure" in the process step.: (recommended to be performed by the design team) in order to assign potential risk due to design and also develop / design alternate measures to reduce risk of failure.
B42: Control Plan | D42: To be used as a living document; the control plan lists all the steps in the process as well as their description and the controls associated to each step in order to reduce defects or potential defects (to be used in accordance with the PFMEA and Process Flow Chart as a group of aligned living documents).
B43: Yokoten | D43: A Japanese term that can be roughly translated as “across everywhere” or "Read Across". In the Japanese Lean system, it is used to mean “best practice sharing.”
B44: Control Chart | D44: The control chart is a graph used to study how a process changes over time. Data are plotted in time order. A control chart always has a central line for the average, an upper line for the upper control limit, and a lower line for the lower control limit. These lines are determined from historical data.
B45: DFMEA | D45: A DFMEA lists all the design characteristics of a part / product and uses a methodical approach to assign risk based on severity, probability of occurrence and detection of a possible defect or "failure" in the process step.: (recommended to be performed by the design team) in order to assign potential risk due to design and also develop / design alternate measures to reduce risk of failure.
B46: Poka Yoke | D46: Japanese term (also known as "mistake proofing") is a method to reduce possible defects by aligning the process with techniques that reduce / eliminate probability of defects.

Sheet 5W Template (hidden)
B1: 5 WHY Analysis
B4: WHY IS THIS A PROBLEM? | D4: PRIMARY CAUSE
D5: Why is it happening?
C6: 1 | D6: It is happening because
F7: Why is that?
E8: 2 | F8: It is happening because
H9: Why is that?
G10: 3 | H10: It is happening because
J11: Why is that?
I12: 4 | J12: It is happening because
L13: Why is that? | P13: ROOT CAUSE
J14: NOTE: If the final "Why" has no controllable solution, return to the previous "Why." | K14: 5 | L14: It is happening because

Sheet 3x5W Template (hidden)
B1: 5x3 5Why Analysis
B3: 5Why Proof Read Back | C3: "Problem Statement” occurred due to “Fifth Why”. This was caused by “Fourth why” mainly because “Third Why” was allowed by “Second why”, and this led to “First Why
B6: Problem Statement: | C6: List the OBJECT and the DEVIATION and what tells us the DEVIATION exists (or state Requirement, Deviation from Requirement, and Impact).
C8: NONCONFORMANCE ESCAPE | D8: INSPECTION ESCAPE | E8: DOCUMENTATION ESCAPE
C9: Why Did This Specific Problem/Issue Occur? | D9: Why Did This Problem/Issue Go Undetected? | E9: Why Did the Management System (CM, Process, etc.) Fail?
B10: 1St Why
B11: 2nd Why
B12: 3rd Why
B13: 4th Why
B14: 5th Why
B15: Root Cause(s) | C15: Root Cause 1 | D15: Root Cause 2 | E15: Root Cause 3

Sheet D8 RECOGNIZE (hidden)
B2: D8 RECOGNIZE Recognize the collective efforts of the RCCA team.
B3: How has the team been recognized for their efforts on this RCCA? Such as a recognition email to the team, Impact Awards, a nomination for a STARS Award, or a nomination for a Quality Award.
B5: Reported By | E5: Verified By | K5: Date Verified
B7: 8D Closed By | E7: Date Closed | G7: Documents Updated
B9: Ensure that the TipQA record has been updated in accordance with ESPD5000.3 Appendix B (Corrective Action Closure Checklist).

Sheet C&E Template (hidden)
B1: Cause & Effect Diagram (Ishikawa Diagram) | AD1: C&E Template | CA1: C&E Template
B3: After filling in the Cause & Effect diagram, select the "Load Hypothesis Testing" button to populate the Hypothesis Testing worksheet. | P3: Contribution Rating Selection
B4: If changes are made to the Cause & Effect Diagram after the Hypothesis Testing worksheet is populated, select "Load Hypothesis Testing" again to refresh the Hypothesis Testing tab. | P4: Select: | Q4: Medium/High
B6: People | D6: Rating | F6: Environment | H6: Rating | J6: Material | L6: Rating
B7: 1 | F7: 1 | J7: 1
B8: 2 | F8: 2 | J8: 2
B9: 3 | F9: 3 | J9: 3
B10: 4 | F10: 4 | J10: 4
B11: 5 | F11: 5 | J11: 5
B12: 6 | F12: 6 | J12: 6
B13: 7 | F13: 7 | J13: 7
B14: 8 | F14: 8 | J14: 8
B15: 9 | F15: 9 | J15: 9
B16: 10 | F16: 10 | J16: 10
B17: 11 | F17: 11 | J17: 11
B18: 12 | F18: 12 | J18: 12
B19: 13 | F19: 13 | J19: 13
B20: 14 | F20: 14 | J20: 14 | N20: Effect
B23: 1 | F23: 1 | J23: 1
B24: 2 | F24: 2 | J24: 2
B25: 3 | F25: 3 | J25: 3
B26: 4 | F26: 4 | J26: 4
B27: 5 | F27: 5 | J27: 5
B28: 6 | F28: 6 | J28: 6
B29: 7 | F29: 7 | J29: 7
B30: 8 | F30: 8 | J30: 8
B31: 9 | F31: 9 | J31: 9
B32: 10 | F32: 10 | J32: 10
B33: 11 | F33: 11 | J33: 11
B34: 12 | F34: 12 | J34: 12
B35: 13 | F35: 13 | J35: 13
B36: 14 | F36: 14 | J36: 14
B38: Machine | D38: Rating | F38: Method | H38: Rating | J38: Measurement | L38: Rating

Sheet PC Template (hidden)
C1: PROBABLE CAUSES | BQ1: PC Template | CA1: PC Template
B3: CAUSE & EFFECT | F3: Contribution Rating Selection
B4: PEOPLE | D4: Contribution Rating | F4: Select: | G4: Medium/High
B5: 1
B6: 2
B7: 3
B8: 4
B9: 5
B10: 6
B11: 7
B12: 8
B13: 9
B14: 10
B15: 11
B16: 12
B17: 13
B18: 14
B19: ENVIRONMENT | D19: Contribution Rating
B20: 1
B21: 2
B22: 3
B23: 4
B24: 5
B25: 6
B26: 7
B27: 8
B28: 9
B29: 10
B30: 11
B31: 12
B32: 13
B33: 14
B34: MATERIAL | D34: Contribution Rating
B35: 1
B36: 2
B37: 3
B38: 4
B39: 5
B40: 6
B41: 7
B42: 8
B43: 9
B44: 10
B45: 11
B46: 12
B47: 13
B48: 14
B49: MACHINE | D49: Contribution Rating
B50: 1
B51: 2
B52: 3
B53: 4
B54: 5
B55: 6
B56: 7
B57: 8
B58: 9
B59: 10
B60: 11
B61: 12
B62: 13
B63: 14
B64: METHOD | D64: Contribution Rating
B65: 1
B66: 2
B67: 3
B68: 4
B69: 5
B70: 6
B71: 7
B72: 8
B73: 9
B74: 10
B75: 11
B76: 12
B77: 13
B78: 14
B79: MEASUREMENT | D79: Contribution Rating
B80: 1
B81: 2
B82: 3
B83: 4
B84: 5
B85: 6
B86: 7
B87: 8
B88: 9
B89: 10
B90: 11
B91: 12
B92: 13
B93: 14

Sheet HT Template (hidden)
B1: Hypothesis Testing
B3: Sr. No | C3: Probable Cause | D3: Testing & observations for probable causes | E3: Conclusion - Valid or Invalid
B4: 1
B5: 2
B6: 3
B7: 4
B8: 5
B9: 6
B10: 7
B11: 8
B12: 9
B13: 10
B14: 11
B15: 12
B16: 13
B17: 14
B18: 15
B19: 16
B20: 17
B21: 18
B22: 19
B23: 20
B24: 21
B25: 22
B26: 23
B27: 24
B28: 25
B29: 26
B30: 27
B31: 28
B32: 29
B33: 30
B34: 31
B35: 32
B36: 33
B37: 34
B38: 35
B39: 36
B40: 37
B41: 38
B42: 39
B43: 40
B44: 41
B45: 42
B46: 43
B47: 44
B48: 45
B49: 46
B50: 47
B51: 48
B52: 49

Sheet IS Template (hidden)
B2: PROBLEM SOLVING WORKSHEET
B3: Is/Is Not & Comparative Analysis Tool
B4: Problem Description:
D5: Problem Description Syntax: Object/Deviation/How Sensed/Impact to Business
B6: Is/Is Not Analysis - Complete during D2 | G6: Comparative Analysis - Complete during D4
D7: IS | E7: IS NOT | G7: Differences | H7: Changes | I7: Dates | J7: Get Information
G8: What is different, odd, unusual, special, or unique about each IS compared to its IS NOT? What else is different? | H8: What changed in, on, around, or about each distinction? When did the change occur? Record date and time. What else has changed?
B9: WHAT | C9: What Object?
C10: What Deviation?
B12: WHERE | C12: Where geographically?
C13: Where on the object?
B15: WHEN | C15: When first?
C16: When since?
C17: What is the pattern?
C18: When in the life cycle?
B20: HOW BIG / EXTENT | C20: How many objects?
C21: What is the size?
B25: Add rows as needed for each category.

Sheet PFD Template (hidden)
C1: Process Flow Diagram
C3: Part #: | O3: Org. Creation Date: | AA3: Rev Date:
C4: Description: | O4: Prepared by: | AA4: Revised By:
C5: HDW / DWG Rev: | O5: PFD Revision:
C7: See example picture below. Delete picture when starting.
B8: COPY AND PASTE BLANK ICONS BELOW | C8: K E Y

Sheet CM Template (hidden)
C1: Causal Map
C3: Part #: | O3: Org. Creation Date: | AA3: Rev Date:
C4: Description: | O4: Prepared by: | AA4: Revised By:
C6: See example picture below. Delete picture when starting.
B7: COPY AND PASTE BLANK ICONS BELOW | C7: K E Y

Sheet PM Template (hidden)
B1: PART SPECIFIC PROCESS FLOW DIAGRAM (PFD)
B4: Process Flow Diagrams is to document and clarify all the steps required in the manufacturing of a part.
B5: Process flows must include the entire manufacturing process, receiving through shipping.
B7: Part #:
B8: Description: | G8: Inspection Key A = AUTOMATIC M = MANUAL V = VISUAL Q = QUALITY AUDIT | N8: Changeover Key P = PRODUCT T = TOOLING S = SOFTWARE D = DUNNAGE L = LABEL
B9: HDW / DWG Rev:
B10: Org. Creation Date:
B11: Prepared by:
B12: PFD Revision:
B13: Rev Date:
B14: Revised By:
B16: Example text listed below - Delete prior to usage | E16: Operation Type
B17: Op- Seq | C17: Process Characteristics Sources of Variation (Inputs) | D17: Special Process Characteristic | E17: Administration (A) Traceability (T) | F17: Fabrication / Transformation | G17: Move / Transport | H17: Lift / Get / Store | I17: Inspect / Verify | J17: Rework | K17: Scrap / Contain | L17: Packaging Interaction | M17: Changeover | N17: Operation Description (Process Function) (Do This - To This - With This) (Purpose of Operation) | O17: Process Function Priority | P17: Product Characteristics (Outputs) | Q17: Special Product Characteristic | R17: Comments
B18: 10 | N18: Receiving
B19: 10.1 | C19: 1. box cutter 2. barcode reader | E19: A / T | F19: X | N19: Open Box & Scan paperwork barcode | P19: Printed Receiver | R19: Traceability
B20: 10.2 | C20: barcode reader | E20: T | H20: X | N20: Get ESD bag | P20: Correct ESD bag | R20: Traceability
B21: 10.3 | C21: ESD bag | G21: X | N21: Place parts in ESD bag | P21: No Damage
B22: 10.4 | C22: 1. Parts 2. Paperwork 3. Bin | G22: X | N22: Place parts & paperwork in bin on Incoming Inspection Rack (FIFO) | P22: Jobs in order (FIFO)
B23: 20 | N23: Incoming Inspection
B24: 20.1, 20.2, 20.3, etc
B25: 30 | N25: Wiper Arm Subassembly
B26: 30.1, 30.2, 30.3, etc
B27: 40 | N27: Route Wire Harness
B28: 40.1, 40.2, 40.3, etc
B29: 30 | N29: Wiper System Installation
B30: 30.1 | C30: Bar Code reader Bin Placard | E30: A / T | H30: X | N30: Get wiper linkage | P30: 1) Correct w iper linkage 2) No damage | R30: Traceability
B31: 30.2 | C31: Placement of isolators | F31: X | N31: Get and manually install isolators | P31: Alignment of isolators to windshield molding | Q31: Dimensional placement of isolators w ith respect to w iper linkage
B32: 30.3 | C32: Torque tool setting | F32: X | N32: Orient and secure w iper linkage to body structure w ith battery torque tool | P32: 1) Alignment of Linkage to windshield molding 2) Torque within design specification | Q32: Clearance to w indshield | R32: Speed control, rotation control, torque control
B33: 30.4 | C33: 30.15 Bar Code reader | E33: T | H33: X | N33: Get wiper motor | P33: 1) Correct wiper motor 2) No damage | R33: Traceability will be needed
B34: 30.5 | C34: Locating feature in tray design Battery torque tool | F34: X | N34: Orient and secure wiper motor to body and w iper linkage w ith battery torque tool | P34: 1) Correct alignment of motor to vehicle 2) Torque within design specification | Q34: Secured with correct torque | R34: Speed control, rotation control, torque control
B35: 30.6 | C35: 1) Operation layout to enable connector orientation 2) Torque tool setup 2) Torque tool calibration | D35: 1: KCC Degree of connector rotation 2: KCC Tool RPM | F35: X | N35: Orient and secure wIper motor ground w ire to vehicle with battery torque tool | P35: 1) Error proof design to prevent connector rotation 2) Torque | Q35: 1: CC Connector orientation 2: CC Ground w ire fastener torque spec | R35: Speed control, rotation control, torque control

Sheet PM C&E Template (hidden)
B1: Step | C1: Process Input | D1: 1 | E1: 2 | F1: 3 | G1: 4 | H1: 5 | I1: 6
B2: LEVEL OF IMPORTANCE TO CUSTOMER RATING SCALE OF 1–10 | D2: 8 | E2: 5 | F2: 7 | G2: 6
B3: Process Step | C3: Process Input | D3: wire in location | E3: Repeatability | F3: meet pull Force | G3: Properly dressed | J3: Total
J4: =SUM(D$2*D4,E$2*E4,F$2*F4,G$2*G4,H$2*H4,I$2*I4) -> 0
J5: =SUM(D$2*D5,E$2*E5,F$2*F5,G$2*G5,H$2*H5,I$2*I5) -> 0
J6: =SUM(D$2*D6,E$2*E6,F$2*F6,G$2*G6,H$2*H6,I$2*I6) -> 0
J7: 0
J8: 0
J9: 0
J10: 0
J11: 0
J12: 0
J13: 0
J14: 0
J15: 0
J16: 0
J17: 0
J18: 0
J19: 0
J20: 0
J21: =SUM(D$2*D21,E$2*E21,F$2*F21,G$2*G21,H$2*H21,I$2*I21) -> 0
J22: 0
J23: 0
J24: 0
J25: 0
J26: 0
J27: 0
J28: 0
J29: 0
J30: 0
J31: 0
J32: 0
J33: 0
J34: 0
J35: 0
J36: =SUM(D$2*D36,E$2*E36,F$2*F36,G$2*G36,H$2*H36,I$2*I36) -> 0
J37: 0
J38: 0
J39: 0
J40: 0
J41: 0
J42: 0
J43: 0
J44: 0
J45: 0
J46: 0
J47: 0
J48: 0
J49: 0
J50: 0
J51: 0
J52: 0
J53: 0
J54: 0
J55: 0
J56: 0
J57: 0
J58: 0
J59: 0
J60: 0
J61: 0
J62: 0
J63: 0
J64: 0
J65: 0
J66: 0
J67: 0
J68: =SUM(D$2*D68,E$2*E68,F$2*F68,G$2*G68,H$2*H68,I$2*I68) -> 0
J69: 0
J70: 0
J71: 0
J72: 0
J73: 0
J74: 0
J75: 0
J76: 0
J77: 0
J78: 0
J79: 0
J80: 0
J81: 0
J82: 0
J83: 0
J84: 0
J85: 0
J86: 0
J87: 0
J88: 0
D89: 1 | E89: 2 | F89: 3 | G89: 4 | H89: 5 | I89: 6
B90: Process Step | C90: Process Input

Sheet CPK Template (hidden)
B1: Process Capability Study Worksheet
B3: Part Number: | G3: Supplier Name: | N3: Date
B4: Drawing Number: | G4: Supplier Address:
B5: Drawing Rev.: | N5: Supplier Contact
B6: Rev. Date:
B7: Drawing Location:
B8: Part Feature:
B10: USL | G10: Summary
B11: LSL
G12: Process Data | I12: Potential Capability
B13: Subgroup | C13: Test Value | D13: Range | G13: LSL= | H13: =C11 -> 0 | I13: Cp= | J13: =IF(SUM(C14:C63)>0,(C10-C11)/(6*(H16)),"") -> 
B14: 1 | G14: USL= | H14: =C10 -> 0 | I14: CpkL= | J14: =IF(SUM(C14:C63)>0,(AVERAGE(C14:C63)-C11)/(3*H16),"") -> 
B15: 2 | D15: =ABS(C15-C14) -> 0 | G15: Mean= | H15: =IF(SUM(C14:C63)>0,AVERAGE(C14:C63),"") ->  | I15: CpkU= | J15: =IF(SUM(C14:C63)>0,(C10-AVERAGE(C14:C63))/(3*H16),"") -> 
B16: 3 | D16: 0 | G16: StDev | H16: =AVERAGE(D15:D63)/1.128 -> 0 | I16: Cpk= | J16: =MIN(J14,J15) -> 0
B17: 4 | D17: 0 | G17: UCLX= | H17: =IF(SUM(C14:C63)>0,C64+2.66*D64,"") ->  | I17: %Cr= | J17: =IF(SUM(C14:C63)>0,1/((C10-C11)/(6*AVERAGE(D14:D63)/1.128)),"") -> 
B18: 5 | D18: 0 | G18: LCLX= | H18: =IF(SUM(C14:C63)>0,C64-2.66*D64,"") ->  | I18: Max= | J18: =MAX(C14:C63) -> 0
B19: 6 | D19: 0 | G19: UCLR= | H19: =3.267 * D64 -> 0 | I19: Min= | J19: =MIN(C14:C63) -> 0
B20: 7 | D20: 0
B21: 8 | D21: 0 | H21: Spec | I21: Frequency
B22: 9 | D22: 0 | G22: 1 | H22: =$C$11 + $G21*(($C$10-$C$11)/7) -> 0 | I22: =FREQUENCY(C14:C63,H22:H29) -> 0
B23: 10 | D23: 0 | G23: 2 | H23: 0 | I23: 0
B24: 11 | D24: 0 | G24: 3 | H24: 0 | I24: 0
B25: 12 | D25: 0 | G25: 4 | H25: 0 | I25: 0
B26: 13 | D26: 0 | G26: 5 | H26: 0 | I26: 0
B27: 14 | D27: 0 | G27: 6 | H27: 0 | I27: 0
B28: 15 | D28: 0 | G28: 7 | H28: 0 | I28: 0
B29: 16 | D29: 0 | G29: 8 | H29: 0 | I29: 0
B30: 17 | D30: 0
B31: 18 | D31: 0
B32: 19 | D32: 0
B33: 20 | D33: 0
B34: 21 | D34: 0
B35: 22 | D35: 0
B36: 23 | D36: 0
B37: 24 | D37: 0
B38: 25 | D38: 0
B39: 26 | D39: 0
B40: 27 | D40: 0
B41: 28 | D41: 0
B42: 29 | D42: 0
B43: 30 | D43: 0
B44: 31 | D44: 0
B45: 32 | D45: 0
B46: 33 | D46: 0
B47: 34 | D47: 0
B48: 35 | D48: 0
B49: 36 | D49: 0
B50: 37 | D50: 0
B51: 38 | D51: 0
B52: 39 | D52: 0
B53: 40 | D53: 0
B54: 41 | D54: 0
B55: 42 | D55: 0
B56: 43 | D56: 0
B57: 44 | D57: 0
B58: 45 | D58: 0
B59: 46 | D59: 0
B60: 47 | D60: 0
B61: 48 | D61: 0
B62: 49 | D62: 0
B63: 50 | D63: 0
B64: Average | C64: =IF(ISNUMBER(AVERAGE(C14:C63)), AVERAGE(C14:C63),"") ->  | D64: =SUM(D14:D63)/COUNT(D14:D63) -> 0
C66: UCLX | D66: LCLX | E66: Mean | F66: UCLR | G66: XmR | H66: Range Average
B67: 1 | C67: =$H$17 ->  | D67: =$H$18 ->  | E67: =$H$15 ->  | F67: =$H$19 -> 0 | G67: =SUM($D$14:$D14)/COUNT($D$14:$D14) ->  | H67: =$D$64 -> 0
B68: 2 | F68: 0 | G68: =SUM($D$14:$D15)/COUNT($D$14:$D15) -> 0 | H68: 0
B69: 3 | F69: 0 | G69: =SUM($D$14:$D16)/COUNT($D$14:$D16) -> 0 | H69: 0
B70: 4 | F70: 0 | G70: =SUM($D$14:$D17)/COUNT($D$14:$D17) -> 0 | H70: 0
B71: 5 | F71: 0 | G71: =SUM($D$14:$D18)/COUNT($D$14:$D18) -> 0 | H71: 0
B72: 6 | F72: 0 | G72: =SUM($D$14:$D19)/COUNT($D$14:$D19) -> 0 | H72: 0
B73: 7 | F73: 0 | G73: =SUM($D$14:$D20)/COUNT($D$14:$D20) -> 0 | H73: 0
B74: 8 | F74: 0 | G74: =SUM($D$14:$D21)/COUNT($D$14:$D21) -> 0 | H74: 0
B75: 9 | F75: 0 | G75: =SUM($D$14:$D22)/COUNT($D$14:$D22) -> 0 | H75: 0
B76: 10 | F76: 0 | G76: =SUM($D$14:$D23)/COUNT($D$14:$D23) -> 0 | H76: 0
B77: 11 | F77: 0 | G77: =SUM($D$14:$D24)/COUNT($D$14:$D24) -> 0 | H77: 0
B78: 12 | F78: 0 | G78: =SUM($D$14:$D25)/COUNT($D$14:$D25) -> 0 | H78: 0
B79: 13 | F79: 0 | G79: =SUM($D$14:$D26)/COUNT($D$14:$D26) -> 0 | H79: 0
B80: 14 | F80: 0 | G80: =SUM($D$14:$D27)/COUNT($D$14:$D27) -> 0 | H80: 0
B81: 15 | F81: 0 | G81: =SUM($D$14:$D28)/COUNT($D$14:$D28) -> 0 | H81: 0
B82: 16 | F82: 0 | G82: =SUM($D$14:$D29)/COUNT($D$14:$D29) -> 0 | H82: 0
B83: 17 | F83: 0 | G83: =SUM($D$14:$D30)/COUNT($D$14:$D30) -> 0 | H83: 0
B84: 18 | F84: 0 | G84: =SUM($D$14:$D31)/COUNT($D$14:$D31) -> 0 | H84: 0
B85: 19 | F85: 0 | G85: =SUM($D$14:$D32)/COUNT($D$14:$D32) -> 0 | H85: 0
B86: 20 | F86: 0 | G86: =SUM($D$14:$D33)/COUNT($D$14:$D33) -> 0 | H86: 0
B87: 21 | F87: 0 | G87: =SUM($D$14:$D34)/COUNT($D$14:$D34) -> 0 | H87: 0
B88: 22 | F88: 0 | G88: =SUM($D$14:$D35)/COUNT($D$14:$D35) -> 0 | H88: 0
B89: 23 | F89: 0 | G89: =SUM($D$14:$D36)/COUNT($D$14:$D36) -> 0 | H89: 0
B90: 24 | F90: 0 | G90: =SUM($D$14:$D37)/COUNT($D$14:$D37) -> 0 | H90: 0
B91: 25 | F91: 0 | G91: =SUM($D$14:$D38)/COUNT($D$14:$D38) -> 0 | H91: 0
B92: 26 | F92: 0 | G92: =SUM($D$14:$D39)/COUNT($D$14:$D39) -> 0 | H92: 0
B93: 27 | F93: 0 | G93: =SUM($D$14:$D40)/COUNT($D$14:$D40) -> 0 | H93: 0
B94: 28 | F94: 0 | G94: =SUM($D$14:$D41)/COUNT($D$14:$D41) -> 0 | H94: 0
B95: 29 | F95: 0 | G95: =SUM($D$14:$D42)/COUNT($D$14:$D42) -> 0 | H95: 0
B96: 30 | F96: 0 | G96: =SUM($D$14:$D43)/COUNT($D$14:$D43) -> 0 | H96: 0
B97: 31 | F97: 0 | G97: =SUM($D$14:$D44)/COUNT($D$14:$D44) -> 0 | H97: 0
B98: 32 | F98: 0 | G98: =SUM($D$14:$D45)/COUNT($D$14:$D45) -> 0 | H98: 0
B99: 33 | F99: 0 | G99: =SUM($D$14:$D46)/COUNT($D$14:$D46) -> 0 | H99: 0
B100: 34 | F100: 0 | G100: =SUM($D$14:$D47)/COUNT($D$14:$D47) -> 0 | H100: 0
B101: 35 | F101: 0 | G101: =SUM($D$14:$D48)/COUNT($D$14:$D48) -> 0 | H101: 0
B102: 36 | F102: 0 | G102: =SUM($D$14:$D49)/COUNT($D$14:$D49) -> 0 | H102: 0
B103: 37 | F103: 0 | G103: =SUM($D$14:$D50)/COUNT($D$14:$D50) -> 0 | H103: 0
B104: 38 | F104: 0 | G104: =SUM($D$14:$D51)/COUNT($D$14:$D51) -> 0 | H104: 0
B105: 39 | F105: 0 | G105: =SUM($D$14:$D52)/COUNT($D$14:$D52) -> 0 | H105: 0
B106: 40 | F106: 0 | G106: =SUM($D$14:$D53)/COUNT($D$14:$D53) -> 0 | H106: 0
B107: 41 | F107: 0 | G107: =SUM($D$14:$D54)/COUNT($D$14:$D54) -> 0 | H107: 0
B108: 42 | F108: 0 | G108: =SUM($D$14:$D55)/COUNT($D$14:$D55) -> 0 | H108: 0
B109: 43 | F109: 0 | G109: =SUM($D$14:$D56)/COUNT($D$14:$D56) -> 0 | H109: 0
B110: 44 | F110: 0 | G110: =SUM($D$14:$D57)/COUNT($D$14:$D57) -> 0 | H110: 0
B111: 45 | F111: 0 | G111: =SUM($D$14:$D58)/COUNT($D$14:$D58) -> 0 | H111: 0
B112: 46 | F112: 0 | G112: =SUM($D$14:$D59)/COUNT($D$14:$D59) -> 0 | H112: 0
B113: 47 | F113: 0 | G113: =SUM($D$14:$D60)/COUNT($D$14:$D60) -> 0 | H113: 0
B114: 48 | F114: 0 | G114: =SUM($D$14:$D61)/COUNT($D$14:$D61) -> 0 | H114: 0
B115: 49 | F115: 0 | G115: =SUM($D$14:$D62)/COUNT($D$14:$D62) -> 0 | H115: 0
B116: 50 | F116: 0 | G116: =SUM($D$14:$D63)/COUNT($D$14:$D63) -> 0 | H116: 0

Sheet MSA Template (hidden)
A1: GAUGE R&R TEMPLATE
B4: Part Number: | E4: Date Completed: | I4: Comments:
B5: Part Description: | E5: Completed By:
B6: Part Rev:
B8: Instructions: | C8: Measure 10 Parts spanning total process output, measured in three random sequences. Each Operator completes one set of measurements, then to the next operator. Repeat for 2 or 3 trials. Enter measurements in Measure1 , Measure2 and Measure3.
B12: Three Operator Measurement Error Test | H12: 10 Parts, 3 Operators, 3 Replicates | K12: =IF(I18>=30%,"Measuring System not suited to detect process changes",IF(I18<15%,"OK to use for process improvement",IF(AND(I18>=15%,I18<30%),"Measurement Sytem is Marginal and May Need Work"))) -> Measuring System not suited to detect process changes
K13: =IF(I24>=30%,"Measuring System must not be used for Accept/Reject of parts", "OK to use for inspection") -> OK to use for inspection
B14: Operator | C14: Part Number | D14: Measure1 | E14: Measure2 | F14: Measure3 | K14: =IF(I19<5,"Measuring System cannot distinguish between parts well", "OK to use for measuring parts") -> Measuring System cannot distinguish between parts well
B15: 1 | C15: 1 | D15: 0.652 | E15: 0.602 | F15: 0.604 | H15: # OF TRIALS (2 OR 3) | I15: 3 | K15: =IF(P44<0.05,"Operators have statistically different results", "Operators are statistically alike") -> Operators have statistically different results
B16: 1 | C16: 2 | D16: 1.002 | E16: 1.002 | F16: 1.004 | H16: Measurement Sigma Est | I16: =SQRT(L52) -> 0.06705000898 | J16: sms
B17: 1 | C17: 3 | D17: 0.852 | E17: 0.802 | F17: 0.804 | H17: Total Study Variability | I17: =SQRT(L54) -> 0.2041161414
B18: 1 | C18: 4 | D18: 0.852 | E18: 0.952 | F18: 0.954 | H18: %R&R | I18: =P47 -> 0.3284894988
B19: 1 | C19: 5 | D19: 0.552 | E19: 0.452 | F19: 0.454 | H19: #Distinct Categories | I19: =ROUND(O49/O52*1.41,0) -> 1
B20: 1 | C20: 6 | D20: 1.002 | E20: 1.002 | F20: 1.004
B21: 1 | C21: 7 | D21: 0.952 | E21: 0.952 | F21: 0.954 | H21: Upper Specification | I21: 2.7
B22: 1 | C22: 8 | D22: 0.852 | E22: 0.802 | F22: 0.804 | H22: Lower Specification | I22: 0.5
B23: 1 | C23: 9 | D23: 1.002 | E23: 1.002 | F23: 1.004 | H23: Tolerance | I23: =I21-I22 -> 2.2
B24: 1 | C24: 10 | D24: 0.602 | E24: 0.702 | F24: 0.704 | H24: %P/T Ratio | I24: =Q47 -> 0.1828636608
B25: 2 | C25: 1 | D25: 0.552 | E25: 0.552 | F25: 0.554
B26: 2 | C26: 2 | D26: 1.052 | E26: 0.952 | F26: 0.954 | H26: Diagnostics | I26: %Contrib
B27: 2 | C27: 3 | D27: 0.802 | E27: 0.752 | F27: 0.754 | H27: =K49 -> Operator | I27: =M49 -> 0.02807627581
B28: 2 | C28: 4 | D28: 0.802 | E28: 0.752 | F28: 0.754 | H28: =K51 -> Sys. Repeatability | I28: =M51 -> 0.02051360867
B29: 2 | C29: 5 | D29: 0.402 | E29: 0.402 | F29: 0.404 | H29: =K52 -> Total GR&R | I29: =M52 -> 0.1079053508
B30: 2 | C30: 6 | D30: 1.002 | E30: 1.052 | F30: 1.054 | H30: =K53 -> Part | I30: =M53 -> 0.8920946492
B31: 2 | C31: 7 | D31: 0.952 | E31: 0.902 | F31: 0.904 | H31: =K54 -> Total Variance | I31: =M54 -> 1
B32: 2 | C32: 8 | D32: 0.752 | E32: 0.702 | F32: 0.704
B33: 2 | C33: 9 | D33: 1.002 | E33: 0.952 | F33: 0.954 | K33: ANOVA Table Without Interaction
B34: 2 | C34: 10 | D34: 0.552 | E34: 0.502 | F34: 0.504 | H34: =IF(P44<0.05,"Part*Operator Interaction Significant","") -> Part*Operator Interaction Significant | K34: Source | L34: dF | M34: SS | N34: MS | O34: F | P34: P
B35: 3 | C35: 1 | D35: 0.502 | E35: 0.552 | F35: 0.554 | K35: Part | L35: =L57 -> 9 | M35: =(OperatorDF+1)*Trials*SUM(N61:N70) -> 3.085 | N35: =M35/L35 -> 0.3427777778 | O35: =N35/N37 -> 133.6076223 | P35: =_xlfn.F.DIST.RT(O35,L35,L37) -> 1.256482159e-43
B36: 3 | C36: 2 | D36: 1.052 | E36: 1.002 | F36: 1.004 | K36: Operator | L36: =COUNT(B15:B44)-SUM(L57:L59)-1 -> 2 | M36: =(PartDF+1)*Trials*SUM((N57-N60)^2,(N58-N60)^2,(N59-N60)^2) -> 0.08672222222 | N36: =M36/L36 -> 0.04336111111 | O36: =N36/N37 -> 16.90125595 | P36: =_xlfn.F.DIST.RT(O36,L36,L37) -> 7.98139163e-07
B37: 3 | C37: 3 | D37: 0.802 | E37: 0.802 | F37: 0.804 | K37: Repeatability | L37: =COUNT(D15:F44)-1-L35-L36 -> 78 | M37: =M38-M36-M35 -> 0.2001133333 | N37: =M37/L37 -> 0.002565555556
B38: 3 | C38: 4 | D38: 0.802 | E38: 0.802 | F38: 0.804 | K38: Total | L38: =COUNT(D15:F44)-1 -> 89 | M38: =SUM(F74:F103) -> 3.371835556
B39: 3 | C39: 5 | D39: 0.452 | E39: 0.502 | F39: 0.504
B40: 3 | C40: 6 | D40: 1.002 | E40: 1.052 | F40: 1.054 | K40: ANOVA Table With Interaction
B41: 3 | C41: 7 | D41: 0.952 | E41: 0.952 | F41: 0.954 | K41: Source | L41: dF | M41: SS | N41: MS | O41: F | P41: P
B42: 3 | C42: 8 | D42: 0.802 | E42: 0.802 | F42: 0.804 | K42: Part | L42: =PartDF -> 9 | M42: =M35 -> 3.085 | N42: =M42/L42 -> 0.3427777778 | O42: =N42/N44 -> 41.45576708 | P42: =_xlfn.F.DIST.RT(O42,L42,L45) -> 1.744223942e-22
B43: 3 | C43: 9 | D43: 1.052 | E43: 1.052 | F43: 1.054 | K43: Operator | L43: =OperatorDF -> 2 | M43: =M36 -> 0.08672222222 | N43: =M43/L43 -> 0.04336111111 | O43: =N43/N44 -> 5.244120941 | P43: =_xlfn.F.DIST.RT(O43,L43,L45) -> 0.007962274682
B44: 3 | C44: 10 | D44: 0.852 | E44: 0.802 | F44: 0.804 | K44: Part*Operator | L44: =PartDF*OperatorDF -> 18 | M44: =M46-M45-M43-M42 -> 0.1488333333 | N44: =M44/L44 -> 0.008268518519 | O44: =N44/N45 -> 9.674553649 | P44: =_xlfn.F.DIST.RT(O44,L44,L45) -> 9.135384695e-12
K45: Repeatability | L45: =COUNT(D15:F44)-1-L42-L43-L44 -> 60 | M45: =(Trials-1)*SUM(K57:K86) -> 0.05128 | N45: =M45/L45 -> 0.0008546666667
K46: Total | L46: =L38 -> 89 | M46: =M38 -> 3.371835556
P47: =O52/O54 -> 0.3284894988 | Q47: =6*O52/I23 -> 0.1828636608
B48: Rev 0.1 J. Ficalora | K48: MSA Components | M48: %Contribution | O48: Std.Dev. | P48: %R&R | Q48: %TOL
K49: Operator | L49: =(N43-N45-3*L50)/3/10 -> 0.001169753086 | M49: =L49/$L$54 -> 0.02807627581 | O49: =SQRT(L49) -> 0.03420165327 | P49: =O49/$O$54 -> 0.1675597679 | Q49: =6*O49/$I$23 -> 0.09327723619
K50: Part*Oper | L50: =IF(P44<0.05,(N44-N45)/3,0) -> 0.002471283951 | M50: =IF(P44<0.05,L50/L54,0) -> 0.05931546632 | O50: 0.04971201012 | P50: =O50/$O$54 -> 0.2435476674 | Q50: =6*O50/$I$23 -> 0.1355782094
K51: Sys. Repeatability | L51: =IF(P44<0.05,N45,N37) -> 0.0008546666667 | M51: =L51/$L$54 -> 0.02051360867 | O51: 0.0292346826 | P51: =O51/$O$54 -> 0.1432257263 | Q51: =6*O51/$I$23 -> 0.07973095254
K52: Total GR&R | L52: =SUM(L49:L51) -> 0.004495703704 | M52: =L52/$L$54 -> 0.1079053508 | O52: 0.06705000898 | P52: =O52/$O$54 -> 0.3284894988 | Q52: =6*O52/$I$23 -> 0.1828636608
K53: Part | L53: =IF(P44<0.05,(N42-N45-3*L50)/9,(N35-N37)/9) -> 0.03716769547 | M53: =L53/$L$54 -> 0.8920946492 | N53: =(M42-M43-M44-M45)/(L45+3) -> 0.04441530864 | O53: 0.1927892514 | P53: =O53/$O$54 -> 0.9445076226 | Q53: =6*O53/$I$23 -> 0.5257888676
K54: Total Variance | L54: =L52+L53 -> 0.04166339918 | M54: =SUM(M52:M53) -> 1 | O54: 0.2041161414
B56: Part Number | C56: Operator1 | D56: Operator2 | E56: Operator3 | K56: Var of repeats | L56: df
B57: 1 | C57: =AVERAGE(D15:F15) -> 0.6193333333 | D57: =AVERAGE(D25:F25) -> 0.5526666667 | E57: =AVERAGE(D35:F35) -> 0.536 | K57: =VAR(D15:F15) -> 0.0008013333333 | L57: =COUNT(D15:F24)/COUNT(D15:F15)-1 -> 9 | M57: Op1bar | N57: =AVERAGE(D15:F24) -> 0.8293333333 | O57: =STDEV(D15:F24) -> 0.1789458275
B58: 2 | C58: 1.002666667 | D58: 0.986 | E58: 1.019333333 | K58: 1.333333333e-06 | L58: =COUNT(D25:F34)/COUNT(D25:F25)-1 -> 9 | M58: Op2bar | N58: =AVERAGE(D25:F34) -> 0.7643333333 | O58: =STDEV(D25:F34) -> 0.2115604313
B59: 3 | C59: 0.8193333333 | D59: 0.7693333333 | E59: 0.8026666667 | K59: 0.0008013333333 | L59: =COUNT(D35:F44)/COUNT(D35:F35)-1 -> 9 | M59: Op3bar | N59: =AVERAGE(D35:F44) -> 0.831 | O59: =STDEV(D35:F44) -> 0.1910506342
B60: 4 | C60: 0.9193333333 | D60: 0.7693333333 | E60: 0.8026666667 | K60: 0.003401333333 | L60: 1 | M60: Ybarbar | N60: =AVERAGE(D15:F44) -> 0.8082222222
B61: 5 | C61: 0.486 | D61: 0.4026666667 | E61: 0.486 | K61: 0.003268 | L61: Part1 | M61: =AVERAGE(D15:F15,D25:F25,D35:F35) -> 0.5693333333 | N61: =(M61-$N$60)^2 -> 0.05706790123
B62: 6 | C62: 1.002666667 | D62: 1.036 | E62: 1.036 | K62: 1.333333333e-06 | L62: Part2 | M62: 1.002666667 | N62: 0.03780864198
B63: 7 | C63: 0.9526666667 | D63: 0.9193333333 | E63: 0.9526666667 | K63: 1.333333333e-06 | L63: Part3 | M63: 0.7971111111 | N63: 0.0001234567901
B64: 8 | C64: 0.8193333333 | D64: 0.7193333333 | E64: 0.8026666667 | K64: 0.0008013333333 | L64: Part4 | M64: 0.8304444444 | N64: 0.0004938271605
B65: 9 | C65: 1.002666667 | D65: 0.9693333333 | E65: 1.052666667 | K65: 1.333333333e-06 | L65: Part5 | M65: 0.4582222222 | N65: 0.1225
B66: 10 | C66: 0.6693333333 | D66: 0.5193333333 | E66: 0.8193333333 | K66: 0.003401333333 | L66: Part6 | M66: 1.024888889 | N66: 0.04694444444
B67: Ybar | C67: =AVERAGE(D74:D103) -> 0.8082222222 | K67: 1.333333333e-06 | L67: Part7 | M67: 0.9415555556 | N67: 0.01777777778
B68: Rbar | C68: =AVERAGE(E74:E103) -> 0.03946666667 | K68: 0.003268 | L68: Part8 | M68: 0.7804444444 | N68: 0.0007716049383
B69: d2 | C69: =IF(I15=3,1.693,1.128) -> 1.693 | K69: 0.0008013333333 | L69: Part9 | M69: 1.008222222 | N69: 0.04
B70: UCL | C70: =C67+3*(C68/C69)/SQRT(Trials) -> 0.8485992286 | K70: 0.0008013333333 | L70: Part10 | M70: 0.6693333333 | N70: 0.01929012346
B71: LCL | C71: =C67-3*(C68/C69)/SQRT(Trials) -> 0.7678452158 | K71: 1.333333333e-06
K72: 0.000868
B73: UCL | C73: LCL | D73: Part Averages | E73: Range | F73: SumSqs | G73: Rbar | H73: Mean | K73: 0.0008013333333
B74: =C70 -> 0.8485992286 | C74: =$C$71 -> 0.7678452158 | D74: =AVERAGE(D15:F15) -> 0.6193333333 | E74: =IF(OR(D15="",E15=""),"",MAX(D15:F15)-MIN(D15:F15)) -> 0.05 | F74: =IF(Trials=3,(D15-$N$60)^2+(E15-$N$60)^2+(F15-$N$60)^2,(D15-$N$60)^2+(E15-$N$60)^2) -> 0.1086397037 | G74: =$C$68 -> 0.03946666667 | H74: =$C$67 -> 0.8082222222 | K74: 0.0008013333333
B75: =B74 -> 0.8485992286 | C75: 0.7678452158 | D75: 1.002666667 | E75: 0.002 | F75: 0.1134285926 | G75: 0.03946666667 | H75: 0.8082222222 | K75: 0.0008013333333
B76: 0.8485992286 | C76: 0.7678452158 | D76: 0.8193333333 | E76: 0.05 | F76: 0.001973037037 | G76: 0.03946666667 | H76: 0.8082222222 | K76: 0.0008013333333
B77: 0.8485992286 | C77: 0.7678452158 | D77: 0.9193333333 | E77: 0.102 | F77: 0.0438397037 | G77: 0.03946666667 | H77: 0.8082222222 | K77: 0.000868
B78: 0.8485992286 | C78: 0.7678452158 | D78: 0.486 | E78: 0.1 | F78: 0.3180174815 | G78: 0.03946666667 | H78: 0.8082222222 | K78: 0.0008013333333
B79: 0.8485992286 | C79: 0.7678452158 | D79: 1.002666667 | E79: 0.002 | F79: 0.1134285926 | G79: 0.03946666667 | H79: 0.8082222222 | K79: 1.333333333e-06
B80: 0.8485992286 | C80: 0.7678452158 | D80: 0.9526666667 | E80: 0.002 | F80: 0.06259525926 | G80: 0.03946666667 | H80: 0.8082222222 | K80: 1.333333333e-06
B81: 0.8485992286 | C81: 0.7678452158 | D81: 0.8193333333 | E81: 0.05 | F81: 0.001973037037 | G81: 0.03946666667 | H81: 0.8082222222 | K81: 0.000868
B82: 0.8485992286 | C82: 0.7678452158 | D82: 1.002666667 | E82: 0.002 | F82: 0.1134285926 | G82: 0.03946666667 | H82: 0.8082222222 | K82: 0.000868
B83: 0.8485992286 | C83: 0.7678452158 | D83: 0.6693333333 | E83: 0.102 | F83: 0.06467303704 | G83: 0.03946666667 | H83: 0.8082222222 | K83: 1.333333333e-06
B84: 0.8485992286 | C84: 0.7678452158 | D84: 0.5526666667 | E84: 0.002 | F84: 0.1959285926 | G84: 0.03946666667 | H84: 0.8082222222 | K84: 1.333333333e-06
B85: 0.8485992286 | C85: 0.7678452158 | D85: 0.986 | E85: 0.1 | F85: 0.1013508148 | G85: 0.03946666667 | H85: 0.8082222222 | K85: 1.333333333e-06
B86: 0.8485992286 | C86: 0.7678452158 | D86: 0.7693333333 | E86: 0.05 | F86: 0.006139703704 | G86: 0.03946666667 | H86: 0.8082222222 | K86: 0.0008013333333
B87: 0.8485992286 | C87: 0.7678452158 | D87: 0.7693333333 | E87: 0.05 | F87: 0.006139703704 | G87: 0.03946666667 | H87: 0.8082222222
B88: 0.8485992286 | C88: 0.7678452158 | D88: 0.4026666667 | E88: 0.002 | F88: 0.4934285926 | G88: 0.03946666667 | H88: 0.8082222222
B89: 0.8485992286 | C89: 0.7678452158 | D89: 1.036 | E89: 0.052 | F89: 0.1573841481 | G89: 0.03946666667 | H89: 0.8082222222
B90: 0.8485992286 | C90: 0.7678452158 | D90: 0.9193333333 | E90: 0.05 | F90: 0.0386397037 | G90: 0.03946666667 | H90: 0.8082222222
B91: 0.8485992286 | C91: 0.7678452158 | D91: 0.7193333333 | E91: 0.05 | F91: 0.02530637037 | G91: 0.03946666667 | H91: 0.8082222222
B92: 0.8485992286 | C92: 0.7678452158 | D92: 0.9693333333 | E92: 0.05 | F92: 0.07947303704 | G92: 0.03946666667 | H92: 0.8082222222
B93: 0.8485992286 | C93: 0.7678452158 | D93: 0.5193333333 | E93: 0.05 | F93: 0.251973037 | G93: 0.03946666667 | H93: 0.8082222222
B94: 0.8485992286 | C94: 0.7678452158 | D94: 0.536 | E94: 0.052 | F94: 0.2240508148 | G94: 0.03946666667 | H94: 0.8082222222
B95: 0.8485992286 | C95: 0.7678452158 | D95: 1.019333333 | E95: 0.05 | F95: 0.1353063704 | G95: 0.03946666667 | H95: 0.8082222222
B96: 0.8485992286 | C96: 0.7678452158 | D96: 0.8026666667 | E96: 0.002 | F96: 9.525925926e-05 | G96: 0.03946666667 | H96: 0.8082222222
B97: 0.8485992286 | C97: 0.7678452158 | D97: 0.8026666667 | E97: 0.002 | F97: 9.525925926e-05 | G97: 0.03946666667 | H97: 0.8082222222
B98: 0.8485992286 | C98: 0.7678452158 | D98: 0.486 | E98: 0.052 | F98: 0.3132174815 | G98: 0.03946666667 | H98: 0.8082222222
B99: 0.8485992286 | C99: 0.7678452158 | D99: 1.036 | E99: 0.052 | F99: 0.1573841481 | G99: 0.03946666667 | H99: 0.8082222222
B100: 0.8485992286 | C100: 0.7678452158 | D100: 0.9526666667 | E100: 0.002 | F100: 0.06259525926 | G100: 0.03946666667 | H100: 0.8082222222
B101: 0.8485992286 | C101: 0.7678452158 | D101: 0.8026666667 | E101: 0.002 | F101: 9.525925926e-05 | G101: 0.03946666667 | H101: 0.8082222222
B102: 0.8485992286 | C102: 0.7678452158 | D102: 1.052666667 | E102: 0.002 | F102: 0.1792619259 | G102: 0.03946666667 | H102: 0.8082222222
B103: 0.8485992286 | C103: 0.7678452158 | D103: 0.8193333333 | E103: 0.05 | F103: 0.001973037037 | G103: 0.03946666667 | H103: 0.8082222222

Sheet PFMEA Template (hidden)
A1: PROCESS FAILURE MODE EFFECTS ANALYSIS (PFMEA)
S4: FMEA number
C5: Item | I5: Process Responsibility | S5: No. of Pages
C6: Part Number | I6: Key dates | S6: Prepared by
C7: Core Team | S7: FMEA date (Orig.) | U7: Rev. Date
A9: Technical Risk Analysis | N9: Risk Assessment | Q9: Action Plan | S9: Actions Results
A10: Item (Op-Seq) | B10: Process Function | D10: Requirement(s) | E10: Potential Failure Mode | G10: Potential Effects of Failure | H10: SEV | I10: Potential Cause(s) of Failure | J10: OCC | K10: Current Process Controls - Prevention (P) | L10: Current Process Controls - Detection (D) | M10: DET | N10: RPN | O10: Product Special Characteristic(s) | P10: Process Special Characteristic(s) | Q10: Recommended Action(s) | R10: Responsibility & Target Completion Date | S10: Completion Date | T10: Actions Taken | U10: NEW SEV | V10: NEW OCC | W10: NEW DET | X10: RPN
N13: =SUM(H13*J13*M13) -> 0 | X13: =SUM(U13*V13*W13) -> 0
N14: 0 | X14: =SUM(U14*V14*W14) -> 0
N15: 0 | X15: 0
N16: 0 | X16: 0
N17: 0 | X17: 0
N18: 0 | X18: 0
N19: 0 | X19: 0
N20: 0 | X20: 0
N21: 0 | X21: 0
N22: 0 | X22: 0
N23: 0 | X23: 0
N24: 0 | X24: 0
N25: 0 | X25: 0
N26: 0 | X26: 0
N27: 0 | X27: 0
N28: 0 | X28: 0
N29: 0 | X29: 0
N30: 0 | X30: 0
N31: 0 | X31: 0
N32: 0 | X32: 0
N33: 0 | X33: 0
N34: 0 | X34: 0
N35: 0 | X35: 0
N36: 0 | X36: 0
N37: 0 | X37: 0
N38: 0 | X38: 0
N39: 0 | X39: 0
N40: 0 | X40: 0
N41: 0 | X41: 0
N42: 0 | X42: 0
N43: 0 | X43: 0
N44: 0 | X44: 0
N45: 0 | X45: 0
N46: 0 | X46: 0
N47: 0 | X47: 0
N48: 0 | X48: 0
N49: 0 | X49: 0
N50: 0 | X50: 0
N51: 0 | X51: 0
N52: 0 | X52: 0
N53: 0 | X53: 0
N54: 0 | X54: 0
N55: 0 | X55: 0
N56: 0 | X56: 0
N57: 0 | X57: 0
N58: 0 | X58: 0
N59: 0 | X59: 0
N60: 0 | X60: 0
N61: 0 | X61: 0
N62: 0 | X62: 0
N63: 0 | X63: 0
N64: 0 | X64: 0

Sheet Control Plan Instructions (hidden)
A1: BAE CONTROL PLAN INSTRUCTIONS
A3: 1A | B3: Prototype | D3: 1B | E3: Pre-Launch | H3: Production | J3: Key Contact / Phone | N3: Date of Origination | Q3: Date of Latest Revision - ref. electronic rev. history
J4: xxx-xxx-xxxx | N4: M/DD/YYYY | Q4: M/DD/YYYY
A5: Control Plan Number | E5: xxxxx
A6: Part Number / Latest Revision Change | J6: Core Team | N6: Customer Engineering Approval / Date (If Required)
A7: sssss | J7: xxxx
A8: Part Name / Description | J8: Supplier / Plant Approval / Date (If Required) | N8: Customer Quality Approval / Date (If Required)
A9: xxxxxx
A10: Supplier / Plant | G10: Supplier Code | J10: Other Approval / Date (If Required) | N10: Other Approval / Date (If Required)
A11: xxxxxx | G11: xxxxxx
A12: Part / | C12: Process Name / | G12: Machine, Device, | J12: Characteristics | M12: Special | N12: Methods | S12: Reaction Plan
A13: Process | C13: Operation | G13: Jig, Tools | J13: No. | K13: Product | L13: Process | M13: Char. | N13: Product / Process | O13: Measurement | P13: Sample | R13: Control Method
A14: Number | C14: Description | G14: for Mfg. | M14: Class | N14: Specification / Tolerance | O14: Technique | P14: Size | Q14: Frequency
A22: Cell Number | B22: Title | K22: Description
A23: 1 - 14 | B23: Header information | K23: Complete all required information on the Master Control Plan form that is hi-lited in light blue
A24: 1A | B24: Prototype | K24: Indicate the appropriate category Prototype - A description of the dimensional measurements, material and performance tests occurring during Prototype build.
A25: 1B | B25: Pre-Launch | K25: Indicate the appropriate category Pre-launch - A description of the dimensional measurements, material and performance tests that will occur after Prototype and before normal Production.
A26: 1C | B26: Production | K26: Indicate the appropriate category Production - A comprehensive documentation of product/process characteristics, process controls, testes, and measurement systems occurring during normal production.
A27: 2 | B27: Control Plan Number | K27: Enter the control plan document number used for tracking, if applicable.
A28: 3 | B28: Part Number / Latest Revision Change | K28: Enter the number of the system, subsystem or component being controlled. When applicable enter the latest engineering change level and or/issue date from the drawing specification
A29: 4 | B29: Part Name / Description | K29: Enter the name and description of the product/process being controlled.
A30: 5 | B30: Supplier / Plant | K30: Enter the name of the company and the appropriate division/plant/department preparing the control plan.
A31: 6 | B31: Supplier Code | K31: Enter the identification number as requested by the procuring organization.
A32: 7 | B32: Key Contact / Phone | K32: Enter the name and telephone number of the primary contact responsible for the control plan.
A33: 8 | B33: Core Team | K33: Enter the name(s) and telephone number(s) of the of the individual(s) responsible for preparing the Control Plan to the latest revision. It is recommended that all of the team members' names, phone numbers, and locations be included on an attached distribution list.
A34: 9 | B34: Supplier / Plant Approval /Date (If Required) | K34: Obtain the responsible manufacturing plant approval (if required).
A35: 10 | B35: Date of Origination | K35: Enter the date that the original control plan was compiled.
A36: 11 | B36: Date of Latest Revision - ref. electronic rev. history | K36: Enter the date of the latest Control Plan updates. Revision history will be located in the Revision History Work book for each Control Plan.
A37: 12 | B37: Customer Engineering Approval / Date (If Required) | K37: Obtain the responsible engineering approval (if required)
A38: 13 | B38: Customer Quality Approval / Date (If Required) | K38: Obtain the responsible supplier quality representative approval (if required).
A39: 14 | B39: Other Approval / Date (If Required) | K39: Obtain any other agreed upon approval (if required)
A40: 15 | B40: Part / Process Number | K40: This item number is usually referenced from the Process Flow Chart. If multiple part numbers exist (assembly), list the individual part numbers and their processes accordingly.
A41: 16 | B41: Process Name / Operation Description | K41: All steps in the manufacturing of a system, subsystem, or component are described in a process flow diagram that best describes the activity being addressed.
A42: 17 | B42: Machine, Device, Jig, Tools for Mfg. | K42: For each operation that is described, identify the processing equipment, e.g., machine, device, jig, or other tools for manufacturing, as appropriate.
A43: CHARACTERISTICS | K43: A distinguishing feature, dimension or property of a process or its output (product) on which variable or attribute data can be collected. Use visual aids where applicable.
A44: 18 | B44: Characteristics No. | K44: Enter a cross reference number from all applicable documents such as, but not limited to, process flow diagram, numbered blue print, FMEAs, and sketches (computer generated or otherwise) if required.
A45: 19 | B45: Characteristics Product | K45: Product Characteristics are the features or properties of a part, component or assembly that are described on drawings or other primary engineering information. The Core Team should identify the Special Product Characteristics from all sources.
A46: 20 | B46: Characteristics Process. | K46: Process Characteristics are the process variables (input variables) that have a cause and effect relationship with the identified Product Characteristic. The Process Characteristic can only be measured at the time it occurs.
A47: 21 | B47: Special Char. Class | K47: Use the appropriate classification as required by the Customer, to identify the type of special characteristic or this field can be left blank for other undesignated characteristics. Customers may use unique symbols to identify important characteristics
A48: METHODS | K48: A systematic plan for using procedures and other tools to control a process.
A49: 22 | B49: Product / Process Specification / Tolerance | K49: Specifications/tolerance may be obtained from various engineering documents, such as, but not limited to , drawings, design reviews, material standard, computer aided design data, manufacturing, and/or assembly requirements.
A50: 23 | B50: Measurement Technique | K50: This column identifies the measurement system being used. This could include gages, fixtures, tools, and/or test equipment required to measure the part/process/manufacturing equipment.
A51: 24 | B51: Sample Size / Sample Frequency | K51: When sampling is required list the corresponding sample size and frequency.
A52: 25 | B52: Control Method | K52: This column contains a brief description of how the operation will be controlled, including procedure numbers where applicable. The control method utilized should be based on effective analysis of the process.
A53: 26 | B53: Reaction Plan | K53: The reaction plan specifies the corrective actions necessary to avoid producing nonconforming products or operating out of control. The actions should normally be the responsibility of the people closest to the process, the operator, jobsetter, or supervisor.

Sheet CP Template (hidden)
A1: BAE CONTROL PLAN
A4: Proto-Type | B4: Pre-Launch | C4: Production | D4: Key Contact / Phone | H4: Date of Origination | L4: Date of Latest Revision - ref. electronic rev. history
A5: Control Plan Number | H5: M/DD/YY | L5: M/DD/YY
A6: Part Number / Latest Revision Change | D6: Core Team | H6: Customer Engineering Approval / Date (If Required)
A8: Part Name / Description | D8: Supplier / Plant Approval / Date (If Required) | H8: Customer Quality Approval / Date (If Required)
A10: Supplier / Plant | C10: Supplier Code | D10: Other Approval / Date (If Required) | H10: Other Approval / Date (If Required)
A12: Part / | B12: Process Name / | C12: Machine, Device, | D12: Characteristics | G12: Special | H12: Methods | M12: Reaction Plan
A13: Process | B13: Operation | C13: Jig, Tools | D13: No. | E13: Product | F13: Process | G13: Char. | H13: Product / Process | I13: Measurement | J13: Sample | L13: Control Method
A14: Number | B14: Description | C14: for Mfg. | G14: Class | H14: Specification / Tolerance | I14: Technique | J14: Size | K14: Freq.

Sheet PR Template (hidden)
B1: PEER REVIEW FORM
B3: 8D No: | E3: Date Raised:
B4: Reviewed By: | E4: Review Date:
B5: Standard Achieved: | E5: =IF(N30<>35,"NOT TO REQUIRED STANDARD",IF(M30="Gold","Gold",IF(L30="Silver","Silver",IF(K30="Bronze","Bronze",IF(J30="Blue","Blue",IF(I30="Red","Red","Not to minimum required standard")))))) -> NOT TO REQUIRED STANDARD | L5: YES
L6: NO
D7: Question | E7: Result | F7: Comments | I7: Red | J7: Blue | K7: Bronze | L7: Silver | M7: Gold | N7: Sum
B8: Step 1 | C8: 1 | D8: Has the problem been clearly defined? Does the problem description clearly state the nonconformity description, the requirement and the deviation from the requirement? | I8: =IF($E8=$L$5,1,0) -> 0 | J8: =IF($E8=$L$5,1,0) -> 0 | K8: 0 | L8: 0 | M8: 0 | N8: =SUM(I8:M8) -> 0
B9: Step 2 | C9: 2 | D9: Is response to containment adequate? | I9: 0 | J9: 0 | K9: 0 | L9: 0 | M9: 0 | N9: =SUM(I9:M9) -> 0
C10: 3 | D10: Has containment been implemented within 48Hrs of concern being raised? | J10: 0 | K10: 0 | L10: 0 | M10: 0
C11: 4 | D11: Has containment implemented proved effective? | J11: 0 | K11: 0 | L11: 0 | M11: 0
C12: 5 | D12: Has there been adequate containment read across? (If not applicable answer N/A) | J12: =IF($E12=$L$5,1,IF($E12="N/A",1,0)) -> 0 | K12: =IF($E12=$L$5,1,IF($E12="N/A",1,0)) -> 0 | L12: =IF($E12=$L$5,1,IF($E12="N/A",1,0)) -> 0 | M12: =IF($E12=$L$5,1,IF($E12="N/A",1,0)) -> 0
B13: Step 3 | C13: 6 | D13: Is there a Statement of Root Cause of escape ? | I13: 0 | J13: 0 | K13: 0 | L13: 0 | M13: 0 | N13: =SUM(I13:M13) -> 0
C14: 7 | D14: Is there adequate evidence of the root cause('s) of escape e.g testing, validation of Escape root cause? | J14: 0 | K14: 0 | L14: 0 | M14: 0
C15: 8 | D15: Have suitable tools been used and is there objective evidence of tool usage? (If not applicable answer N/A) | J15: =IF($E15=$L$5,1,IF($E15="N/A",1,0)) -> 0 | K15: =IF($E15=$L$5,1,IF($E15="N/A",1,0)) -> 0 | L15: =IF($E15=$L$5,1,IF($E15="N/A",1,0)) -> 0 | M15: =IF($E15=$L$5,1,IF($E15="N/A",1,0)) -> 0
C16: 9 | D16: Is there clear statement of actions taken to Prevent Further escapes ? | I16: 0 | J16: 0 | K16: 0 | L16: 0 | M16: 0 | N16: =SUM(I16:M16) -> 0
B17: Step 4 | C17: 10 | D17: Has the root cause of escape been actioned? | J17: 0 | K17: 0 | L17: 0 | M17: 0
C18: 11 | D18: Have actions been verified for there effectivness? | J18: =IF($E18=$L$5,1,0) -> 0 | K18: 0 | L18: 0 | M18: 0
C19: 12 | D19: Is there evidence of adequate read across? (If not applicable answer N/A) | J19: =IF($E19=$L$5,1,IF($E19="N/A",1,0)) -> 0 | K19: =IF($E19=$L$5,1,IF($E19="N/A",1,0)) -> 0 | L19: =IF($E19=$L$5,1,IF($E19="N/A",1,0)) -> 0 | M19: =IF($E19=$L$5,1,IF($E19="N/A",1,0)) -> 0
B20: Step 5 | C20: 13 | D20: Is there a Statement of Root Cause of problem? | I20: 0 | J20: 0 | K20: 0 | L20: 0 | M20: 0 | N20: =SUM(I20:M20) -> 0
C21: 14 | D21: Is there adequate information / data to show true root cause has been identified? | J21: 0 | K21: 0 | L21: 0 | M21: 0
C22: 15 | D22: Have suitable tools been used to determine true root cause? (If applicable - If not applicable answer Yes) | J22: =IF($E22=$L$5,1,IF($E22="N/A",1,0)) -> 0 | K22: =IF($E22=$L$5,1,IF($E22="N/A",1,0)) -> 0 | L22: =IF($E22=$L$5,1,IF($E22="N/A",1,0)) -> 0 | M22: =IF($E22=$L$5,1,IF($E22="N/A",1,0)) -> 0
B23: Step 6 | C23: 16 | D23: Is there clear statement of actions taken to Prevent Further Problems? | I23: 0 | J23: 0 | K23: 0 | L23: 0 | M23: 0 | N23: =SUM(I23:M23) -> 0
C24: 17 | D24: Has the root cause of the problem been actioned? | J24: 0 | K24: 0 | L24: 0 | M24: 0
C25: 18 | D25: Have actions been verified for there effectivness? | J25: 0 | K25: 0 | L25: 0 | M25: 0
C26: 19 | D26: Is there evidence of adequate read across? (If not applicable answer N/A) | J26: =IF($E26=$L$5,1,IF($E26="N/A",1,0)) -> 0 | K26: =IF($E26=$L$5,1,IF($E26="N/A",1,0)) -> 0 | L26: =IF($E26=$L$5,1,IF($E26="N/A",1,0)) -> 0 | M26: =IF($E26=$L$5,1,IF($E26="N/A",1,0)) -> 0
B27: Step 7 | C27: 20 | D27: Have all actions implemented been verified and data provided to prove effectivness? | I27: 0 | J27: 0 | K27: 0 | L27: 0 | M27: 0 | N27: =SUM(I27:M27) -> 0
C28: 21 | D28: Go and review the corrective actions to check the processes are being worked? (If not applicable answer N/A) | J28: =IF($E28=$L$5,1,IF($E28="N/A",1,0)) -> 0 | K28: =IF($E28=$L$5,1,IF($E28="N/A",1,0)) -> 0 | L28: =IF($E28=$L$5,1,IF($E28="N/A",1,0)) -> 0 | M28: =IF($E28=$L$5,1,IF($E28="N/A",1,0)) -> 0
B29: General | C29: 22 | D29: Has all revelant documentation been updated to reflect corrective actions taken? | I29: 0 | J29: 0 | K29: 0 | L29: 0 | M29: 0
D30: Quantity YES | E30: =COUNTIF(E8:E29,"YES") -> 0 | F30: Note : If there has been no escape, Step 3 & 4 will not be applicable, therefore, record the result as Yes and provide details in the Comments box. | I30: =IF(SUM(I8:I29)<=7,"Red","Failed") -> Red | J30: =IF(SUM(J8:J29)>=10,"Blue","Failed") -> Failed | K30: =IF(SUM(K8:K29)>=14,"Bronze","Failed") -> Failed | L30: =IF(SUM(L8:L29)>=19,"Silver","Failed") -> Failed | M30: =IF(SUM(M8:M29)=22,"Gold","Failed") -> Failed | N30: =SUM(N8:N29) -> 0 | P30: =IF(N30<35,"1") -> 1
D31: Quantity NO | E31: =COUNTIF(E8:E29,"NO") -> 0
D32: Percentage score: | E32: =IFERROR(E30/(E30+E31),"") -> 
